{"text_format":"1","workbook":"xlsx","n_sheets":37,"sheets":["Meeting April 2024","Guest in April","Meeting May 2024","Guest in May 2024","Meeting June 2024","Guest June 2024","Meeting August 2024","Meeting Jully 2024","Guest Jully 2024","Guest August 2024","Meeting September 2024","Guest September 2024","Meeting October 2024","Guest October 2024","Meeting November 2024","Guest November 2024","Meeting December 2024","Guest December 2024","Guest January 2025","Meeting January 2025","Meeting February 2025","Guest February 2025","Meeting March 2025","Guest March 2025","Meeting April 2025","Guest April 2025","Meeting May 2025","Guest May 2025","Consumption may 2025 ","Guest June 2025","Consumption June 2025 ","Camp June 2025","Camp jully 2025","Camp August 2025","Consumption August","Consumption September","Sheet1"],"not_rendered":{"charts":0,"images":0,"macros":0,"external_links":0,"defined_names":10,"comments":0,"pivot_tables":0},"unopened":[],"bounds":{"document_bytes":16777216,"sheet_cells":100000,"rows_first":2000,"rows_last":500,"rows_between":2000,"halvings":0,"cell_chars":16384,"cell_head_chars":4096},"cells_cut":0,"cells_raw":0,"read":"whole","date_system":"1900"}

{"sheet":"Meeting April 2024","index":0,"n_rows":16,"n_cols":5,"rows_kept":16,"cut":false,"hidden":true,"merged":[[1,1,1,3],[3,1,4,1],[7,1,8,1],[10,1,11,1]]}
[]
[null,"MEETING AND TRAINING IN APRIL"]
[null,"DATE","AGENDA","NUMBER OF PEOPLE"]
[null,"2024-04-03","Finance meeting",5]
[null,null,"Task force meeting (Illegar miner)",15]
[null,"2024-04-04","Task force meeting (Illegar miner)",20]
[null,"2024-04-11","Province administration& Rutongo mines",10]
[null,"22/4/2024 to 26/4/2024","Front line supervisory training",25]
[null,null,"Bobcat training",8]
[null,"2024-04-23","SML (leadership training)",14]
[null,"2024-04-26","Interview of subco",10]
[null,null,null,null,"Hano ni ya nama yaberaga muri boardroom abantu bagenda basimburana ntag nzi uko yitwa"]
[null,"2024-04-27","Bobcat training",8]
[null,"29/04/2024 to 30/4/2024","Front line supervisory training",25]
[null,"2024-04-29","Investigation of shooting incindent done by ISCO",8]
[null,"2024-04-30","HIRA (Leadership training)",25]

{"sheet":"Guest in April","index":1,"n_rows":13,"n_cols":4,"rows_kept":13,"cut":false,"hidden":true,"merged":[]}
[]
[null,"NAMES","DEPARTMENT","TIME IN - TIME OUT"]
[null,"Quintin ensuing",null,"7/4/2024  - 14/4/2024"]
[null,"Quintin grix",null,"7/4/2024  - 14/4/2024"]
[null,"Jo daneel","SHEC","8/4/2024  -  16/4/2024"]
[null,"Johan albert","Engeneering","15/4/2024  - 19/4/2024"]
[null,"Fanie fereira","HR","14/4/2024 -  5/5/2024"]
[null,"Pieter","HR","14/4/2024 - 5/5/2024"]
[null,"Lina ","HR","14/4/2024 - 27/4/2024"]
[null,"Chandela","HR","22/4/2024 - 27/4/2024"]
[null,"Gegary brooker",null,"22/4/2024 - 5/5/2024"]
[null,"Jaque botha","SUPPLY CHAIN","21/4/2024 - 25/4/2024"]
[null,"Edward","Engeneering","22/4/2024 - 28/4/2024"]

{"sheet":"Meeting May 2024","index":2,"n_rows":16,"n_cols":3,"rows_kept":16,"cut":false,"hidden":true,"merged":[[1,0,1,2],[10,0,11,0],[12,0,13,0]]}
[]
["MEETING AND TRAINING IN MAY"]
["DATE","AGENDA","NUMBER OF PEOPLE"]
["29/04/2024 to 4/5/2024","Front line supervisory training",25]
["2024-05-03","Integrated T.S planning meeting",40]
["04/05/2024 AND 6/5/2024","Sampleling consultant meeting",10]
["2024-05-09","Sampleling consultant meeting",5]
["2024-05-10","Geologist meeting with consultant",9]
["2024-05-17","Visible felt leadership training",25]
["20/5/2024 to 24/5/2024","Front line supervisory training",26]
["2024-05-23","Supply chain visitors from Musha & ETI",6]
[null,"RMB inspection",17]
["2024-05-27","Global link solution",8]
[null,"IPRS visitors in mining",21]
["2024-05-29","Subcontractor Model review",19]
["27/5/2024 to 31/5/2024","Front line supervisory training",24]

{"sheet":"Guest in May 2024","index":3,"n_rows":15,"n_cols":4,"rows_kept":15,"cut":false,"hidden":true,"merged":[[1,1,1,3]]}
[]
[null,"Guest in May 2024"]
[]
[]
[null,"NAMES","DEPARTMENT","TIME IN - TIME OUT"]
[null,"Fanie fereira","HR","14/4/2024 -  5/5/2024"]
[null,"Pieter","HR","14/4/2024 - 5/5/2024"]
[null,"Gegary brooker","Tech service","22/4/2024 - 5/5/2024"]
[null,"Siobhan joubert","Tech service","2/5/2024 - 10/5/2024"]
[null,"Andrew nel clay","Tech service","2/5/2024 - 10/5/2024"]
[null,"Clive brown","Tech service","2/5/2024 - 10/5/2024"]
[null,"Gerrit","SHEC","5/5/2024 - 13/5/2024"]
[null,"Jo Daneels","SHEC","16/5/2024 - 19/5/2024"]
[null,"Fanie fereira","HR","18/5/2024 - 2/6/2024"]
[null,"Rina muller","HR","18/5/2024 - 2/6/2024"]

{"sheet":"Meeting June 2024","index":4,"n_rows":19,"n_cols":3,"rows_kept":19,"cut":false,"hidden":true,"merged":[[14,0,15,0],[1,0,1,2],[7,0,8,0],[10,0,12,0]]}
[]
["MEETING AND TRAINING IN JUNE"]
["DATE","AGENDA","NUMBER OF PEOPLE"]
["2024-06-05","Rutongo mines special cell",26]
["2024-06-06","Visible felt leadership training",22]
["2024-06-07","RPF meeting with mayor",110]
["2024-06-10"," Meeting of GM with engeneering department",12]
["10/6/2024 up to 15/6/2024","Blasting certificate programe training",26]
[null,"Bobcat training",6]
["2024-06-11","RWIMA and H.D.I meeting",150]
["2024-06-13","Subcontractor review",11]
[null,"Trynity Rutongo management meeting",8]
[null,"REWU representative meeting",11]
["17/6/2024 up to 21/6/2024","Blasting certificate programe training",26]
["2024-06-20","Minister of gender visit",50]
[null,"Ground control training",25]
["24/6/2024 up to 28/6/2024","Blasting certificate programe training",26]
["2024-06-25","Next step - Mining contractor review",14]
["2024-06-27","Rescue refresher",6]

{"sheet":"Guest June 2024","index":5,"n_rows":15,"n_cols":3,"rows_kept":15,"cut":false,"hidden":true,"merged":[[1,0,1,2]]}
[]
["Guest in June 2024"]
[]
[]
["NAMES","DEPARTMENT","TIME IN - TIME OUT"]
["Jeanette Erasmus","SHEC","4/6/2024 - 8/6/2024"]
["Nadine coetzer","SHEC","4/6/2024 - 8/6/2024"]
["Leon melville koekender","SHEC","4/6/2024 - 8/6/2024"]
["Jo daneels","SHEC","4/6/2024 - 8/6/2024"]
["Pieter albert","SML","8/6/2024 - 15/6/2024"]
["Fanny ferreira","SML","8/6/2024 - 29/6/2024"]
["Chandela","SML","9/6/2024 - 16/6/2024"]
["Mike jacklin","Procurement","15/06/2024 - 21/6/2024"]
["Gerrit ferreira","SHEC","17/6/2024 - 23/6/2024"]
["Pieter albert","SML","22/6/2024 - "]

{"sheet":"Meeting August 2024","index":6,"n_rows":18,"n_cols":3,"rows_kept":18,"cut":false,"hidden":true,"merged":[[1,0,1,2],[13,0,14,0],[16,0,17,0]]}
[]
["MEETING AND TRAINING IN AUGUST 2024"]
["DATE","AGENDA","NUMBER OF PEOPLE"]
["2024-08-01","CEO and HR manager meeting",10]
["5/8/2024 to 9/8/2024","Driver training",5]
["08/08/2024 to 9/8/2024","HOD training",17]
["2024-08-09","RMB inspection",13]
["12/08/2024  to 16/8/2024","Supervisory training",20]
["13/8/2024 to 14/8/2024","HOD training",17]
["2024-08-13","Ambasador visit",20]
["15/08/2024 to 16/2024","HOD training",14]
["19/8/2024 to 23/8/2024","Supervisory training",14]
["2024-08-20","GM meeting",10]
["2024-08-27","Michael meeting",6]
[null,"CEO meeting",8]
["2024-08-28","Performance management training",50]
["2024-08-30","Performance management training",40]
[null,"CEO meeting"," "]

{"sheet":"Meeting Jully 2024","index":7,"n_rows":20,"n_cols":3,"rows_kept":20,"cut":false,"hidden":true,"merged":[[1,0,1,2],[9,0,10,0]]}
[]
["MEETING AND TRAINING IN JULLY 2024"]
["DATE","AGENDA","NUMBER OF PEOPLE"]
["2024-07-02"," HIRA",15]
["2024-07-02","A.P handover",20]
["2024-07-04","HIRA",10]
["2024-07-11","HOD Training",25]
["2024-07-12","HOD Training",20]
["2024-07-17","HOD Training",20]
["2024-07-18","GM meeting",14]
[null,"HOD Training",15]
["2024-07-19","Skills development summit",50]
["22/7/2024 - 26/7/2024","Flontline supervisory training",21]
["2024-07-22"," CEO meeting",15]
["29/7/2024 -2/8/2024","Flontline supervisory training",25]
["2024-07-29","Group leadership",16]
["2024-07-31","Task force in illegal mining activities",14]
[]
[]
[null,"  "]

{"sheet":"Guest Jully 2024","index":8,"n_rows":15,"n_cols":3,"rows_kept":15,"cut":false,"hidden":true,"merged":[[1,0,1,2]]}
[]
["Guest in Jully 2024"]
[]
[]
["NAMES","DEPARTMENT","TIME IN - TIME OUT"]
["Chandela","SML","07/07/2024 - 16/7/2024"]
["Rina muller","SML","8/7/2024 - 20/7/2024"]
["Pieter albert","SML","14/7/2024 - 31/7/2024"]
["Zack kaemmerlen",null,"16/7/2024 - 31/7/2024"]
["Graham mark",null,"23/7/2024 - 27/7/2024"]
["Luca McCormick",null,"23/07/2024 - 31/7/2024"]
["Jo daneels","SHEC","23/7/2024 - 3/8/2024"]
["Quinton","TECH.SERV","25/7/2024 - 26/7/2024"]
["Fanie ferreira","SML","27/7/2024 - 24/8/2024"]
["Gerrit ferreira","SHEC","28/7/2024 - 10/8/2024"]

{"sheet":"Guest August 2024","index":9,"n_rows":11,"n_cols":3,"rows_kept":11,"cut":false,"hidden":true,"merged":[]}
[]
["NAMES","DEPARTMENT","TIME IN - TIME OUT"]
["Fanie ferreira","SML","27/7/2024 - 24/8/2024"]
["Gerrit ferreira","SHEC","28/7/2024 - 10/8/2024"]
["Abdallah chandela","SML","4/8/2024 - 10/8/2024"]
["Pieter","SML","11/8/2024 - 21/8/2024"]
["Lina muller","SML","7/8/2024 - 17/8/2024"]
["Gerrit ferreira","SHEC","25/8/2024 - 7/9/ 2024"]
["Michael","Supply chain","26/8/2024 - 3/9/2024"]
["Andrew krugger","Finance","26/8/2024 - 3/9/2024"]
["JO danniel","SHEC","30/8/2024 - 5/9/2024"]

{"sheet":"Meeting September 2024","index":10,"n_rows":17,"n_cols":4,"rows_kept":17,"cut":false,"hidden":true,"merged":[[1,1,1,3]]}
[]
[null,"MEETING AND TRAINING IN SEPTEMBER 2024"]
[null,"DATE","AGENDA","NUMBER OF PEOPLE"]
[null,"2/9/2024 - 3/9/2024","Bobcat operational training",11]
[null,"2/9/2024 - 4/9/2024","Management meeting",20]
[null,"4/9/2024 - 5/9/2024","Bobcat operational training",13]
[null,"2024-04-09","RMB visit",24]
[null,"2024-05-09","Management meeting",5]
[null,"6/9/2024 - 7/9/2024","Bobcat operational training",7]
[null,"2024-06-09","Mine rescue refreshment training",15]
[null,"16/9/2024 - 20/9/2024","Supervisory program training",23]
[null,"17/9/2024","CEO Meeting",7]
[null,"20/9/2024","Mine rescue refreshment training",8]
[null,"23/9/2024 - 27/9/2024","Supervisory program training",26]
[null,"25/9/2024","Planning meeting",10]
[null,"26/9/2025","RMB and Environment meeting",14]
[null,"27/9/2024","Mine rescue refreshment training",16]

{"sheet":"Guest September 2024","index":11,"n_rows":14,"n_cols":4,"rows_kept":14,"cut":false,"hidden":true,"merged":[]}
[]
[]
[null,"NAMES","DEPARTMENT","TIME IN - TIME OUT"]
[null,"Chandela","SML","1/9/2024 - 8/9/2024"]
[null,"Clive Brown","Tech.service"," 2/9/2024 -5/9/2024"]
[null,"Greg Brooker","Tech.service","2/9/2024 -5/9/2024"]
[null,"Freddy Chikwiri","Tech.service","8/9/2024 - 14/9/2024"]
[null,"Pieter Albert","SML","15/9/2024 - 28/9/2024"]
[null,"Dusty","SML","15/9/2024 - 28/9/2024"]
[null,"Christopher Gerard o' Neill","Tech.service","16/9/2024 - 18/10/2024"]
[null,"William emmanuel","Engeneering","22/9/2024 -"]
[null,"chandela","SML","29/9/2024 - 12/10/2024"]
[null,"Lina Muller","SML","29/9/2024 - 8/10/ 2024"]
[null,"Gerrit Fereira","SHEC","30/9/2024 -"]

{"sheet":"Meeting October 2024","index":12,"n_rows":11,"n_cols":4,"rows_kept":11,"cut":false,"hidden":true,"merged":[[1,1,1,3]]}
[]
[null,"MEETING AND TRAINING IN OCTOBER 2024"]
[null,"DATE","AGENDA","NUMBER OF PEOPLE"]
[null,"2024-03-10"," German Minister visit",15]
[null,"3/10/2024 - 4/10/2024","POC  Head of Department training",15]
[null,"7/10/2024 - 9/10/2024","Locomotive Operator training",13]
[null,"10/10/2024 - 11/10/2024","Locomotive Operator Assistant training",13]
[null,"14/10/2024 - 18/10/2024","Frontline Supervisory program Group 7 phaseB",14]
[null,"21/10/2024 - 25/10/2024","Frontline Supervisory program Group 6 phaseB",21]
[null,"25/10/2024","Leadership Meeting",20]
[null,"28/10/2024 - 30/10/2024","Explosives inspection",15]

{"sheet":"Guest October 2024","index":13,"n_rows":10,"n_cols":4,"rows_kept":10,"cut":false,"hidden":true,"merged":[]}
[]
[]
[null,"NAMES","DEPARTMENT","TIME IN - TIME OUT"]
[null,"Chandela  Abdarhan","SML Change","6/10/2024 - 12/10/2024"]
[null,"Pieter Albert","SML Change","13/10/2024 - 26/10/2024"]
[null,"Frans","SML Change","13/10 2024 - 26/10/2024"]
[null,"Bonitha botha","Engeneering","14/10/2024 -17/10/2024"]
[null,"Quinton","Mining","19/10/2024 - 22/10/2024"]
[null,"Chrive brown","T.service","19/10/2024 - 26/10/2024"]
[null,"Shane Ryan","C.O.O","23/10/2024 - "]

{"sheet":"Meeting November 2024","index":14,"n_rows":16,"n_cols":4,"rows_kept":16,"cut":false,"hidden":true,"merged":[[1,1,1,3],[9,1,10,1]]}
[]
[null,"MEETING AND TRAINING IN NOVEMBER 2024"]
[null,"DATE","AGENDA","NUMBER OF PEOPLE"]
[null,"4/11/2024 - 8/11/2024","Blasting certificate pilot program",23]
[null,"5/11/2024 - 6/11/2024","Budget review",25]
[null,"11/11/2024 - 15/11/2024","Blasting certificate pilot program",24]
[null,"2024-11-11","HIRA",6]
[null,"13/11/2024","Geologist session",13]
[null,"18/11/2024 - 22/11/2024","Blasting certificate pilot program",24]
[null,"18/11/2024","RRA Auditor",10]
[null,null,"AP trainning",18]
[null,"20/11/2024","Budget review",10]
[null,"22/11/2024","Planning meeting",10]
[null,"25/11/2024 - 29/11/2024","Supervisory training",18]
[null,"27/11/2024 - 30/11/2024","\"",18]
[null,null,"\""]

{"sheet":"Guest November 2024","index":15,"n_rows":10,"n_cols":4,"rows_kept":10,"cut":false,"hidden":true,"merged":[]}
[]
[]
[null,"NAMES","DEPARTMENT","TIME IN - TIME OUT"]
[null,"Pieter Albert","SML Change","10/11/2024 - "]
[null,"Fanie ferreira","SML Change","3/11/2024 - 28/11/2024"]
[null,"Siobhan jourbert","Tech. service","12/11/2024 - 16/11/2024"]
[null,"William nyanungu","Engeneering","22/9/2024 - "]
[null,"Esperance  E.T.I","OHS","24/11/2024 - "]
[null,"Gerrit ferreira","OHS","30/9/2024 - "]
[null,"Shane Ryan","C.O.O","29/10/2024 - "]

{"sheet":"Meeting December 2024","index":16,"n_rows":47,"n_cols":6,"rows_kept":47,"cut":false,"hidden":true,"merged":[[1,1,1,4],[22,1,24,1],[29,1,30,1],[31,1,32,1],[33,1,36,1],[43,1,44,1],[26,1,28,1],[20,1,21,1],[18,1,19,1],[39,1,41,1]]}
[]
[null,"MEETING AND TRAINING IN DECEMBER 2024"]
[null,"DATE","AGENDA","NUMBER OF PEOPLE","CONSUMPTION"]
[null,"2024-02-12","Task force",20,"Lunch"]
[null,"2024-05-12","POLC ",8,"Lunch, Snacks, Softdrink"]
[null,"11/12/2024 to 12/12/2024","Safety training",10,"Lunch"]
[null,"17/12/2024","Budget review",5,"Lunch"]
[null,"16/12/2024 to 17/12/2024","Stock take",15,"Lunch, Softdrink"]
[null,"18/12/2024","ESIA Disclosure on local level",30,"Lunch,Snacks ,Beers"]
[null,"18/12/2024 to 20/12/2024","Bobcat operator training",14,"Lunch"]
[null,"19/12/2024","End month review and planning",12,"Lunch"]
[null,"20/12/2024","Visible felt leadership",17,"Lunch"]
[]
[]
[]
[]
[]
[null,"DATE","CONSUMPTION","NUMBER OF PEOPLE","UNITY PRICE","TOTAL AMOUNT"]
[null,"2024-02-12"," Lunch for Task force",20,5000,{"$f":"D19*E19","v":100000}]
[null,null,"Soft drinks forTask force",20,1200,{"$f":"D20*E20","v":24000}]
[null,"2024-03-12","Lunch for Guest in camp",21,4000,{"$f":"D21*E21","v":84000}]
[null,null," Dinner for Guest in camp",3,6000,18000]
[null,"2024-05-12","Lunch for POLC ",8,5000,40000]
[null,null,"Snacks for POLC",1,15000,15000]
[null,null,"Soft drinks for POLC",8,1200,9600]
[null,"2024-11-12","Lunch for safety training for (2 days)",20,4000,80000]
[null,"2024-12-12","Accomodation for safety Officer(E.T.I)",10,15000,150000]
[null,null,"Lunch for 2 safety Officer(E.T.I) 10 days",17,3000,51000]
[null,null,"Dinner for Safety officer (E.T.I)",10,3000,30000]
[null,"16/12/2024 ","Lunch for stock take  (2 days)",30,4000,120000]
[null,null,"Soft drinks for Stock take (2 days)",30,1200,36000]
[null,"17/12/2024","Lunch for Budget review",5,4000,20000]
[null,null,"Water for Budget review",1,19200,19200]
[null,"18/12/2024"," Lunch for ESIA Disclosure on Local Level",30,5000,150000]
[null,null,"Snacks for ESIA Disclosure on Local Level",1,47000,47000]
[null,null,"Beers and Softdrink",1,73500,73500]
[null,null,"Lunch for Bobcat training (3 days)",42,4000,168000]
[null,"19/12/2024","Lunch for End month review & planning",12,4000,48000]
[null,"20/12/2024","Lunch for Visible felt leadership training",17,4000,68000]
[null,"23/12/2024","Lunch for G.M visitor",4,3000,12000]
[null,null,"Soft drink for GM visitor",4,1200,4800]
[null,null,"Function for Recognition of MasoroTunnel",1,1204300,1204300]
[null,"26/12/2024","Refreshments for Engineering Support at night(breakdown)",1,84800,84800]
[null,"30/12/2024","Lunch for Auditor",4,3000,12000]
[null,null,"Soft drink for Aditor",3,1200,3600]
[]
[null,null,null,null,"Total",{"$f":"SUM(F19:F45)","v":2672800}]

{"sheet":"Guest December 2024","index":17,"n_rows":12,"n_cols":4,"rows_kept":12,"cut":false,"hidden":true,"merged":[]}
[]
[null,"NAMES","DEPARTMENT","TIME IN - TIME OUT"]
[null,"Pieter Albert","SML Change","11/12/2024 - 12/12/2024"]
[null,"Lina muller","SML Change","4/12/2024 - 12/12/2024"]
[null,"Siobhan jourbert","Tech. service","3/12/2024 - 13/12/2024"]
[null,"William nyanungu","Engeneering","22/9/2024 - 12/12/2024"]
[null,"Esperance  E.T.I","OHS","13/12/2024 - 20/12/2024"]
[null,"Gerrit ferreira","OHS","30/9/2024 - 16/12/2024"]
[null,"Shane Ryan","C.O.O","29/10/2024 - 20/12/2024"]
[null,"Chistopher","Mining","30/11/2024 - 20/12/2024"]
[null,"Joanne Daneel","SHEC","2/12/2024 - 12/12/2024"]
[null,"Chandela","SML Change","17/12/2024 - 21/12/2024"]

{"sheet":"Guest January 2025","index":18,"n_rows":14,"n_cols":4,"rows_kept":14,"cut":false,"hidden":true,"merged":[]}
[]
[null,"NAMES","DEPARTMENT","TIME IN - TIME OUT"]
[null,"William nyanungu","Engeneering","2/1/2025 - up to now"]
[null,"Gerrit ferreira","OHS","8/1/2025 - 29/1/2025"]
[null,"Siobhan","MRM","13/1/2025 - 15/1/2025"]
[null,"Chikwiri","MRM","13/1/2025 -15/1/2025"]
[null,"Joanne daneel","SHEC","13/1/2025 - 21/1/2025"]
[null,"(2)Visitor of ETEK","SHEC","15/1/2025 - 16/1/2025"]
[null,"(2) Visitor of SRA","SHEC","16/1/2025 - 17/1/2025"]
[null,"Timothy makubo","Supply chain","18/1/2025 - 30/4/2025"]
[null,"Shane ryan","C.O.O","21/1/2025 - 31/1/2025"]
[null,"Siobhan","MRM","23/1/2025 - 24/1/2025"]
[null,"Pieter Albert","H.R","26/1/2025 - "]
[null,"Frans","H.R","26/1/2025 - "]

{"sheet":"Meeting January 2025","index":19,"n_rows":143,"n_cols":6,"rows_kept":143,"cut":false,"hidden":true,"merged":[[44,1,49,1],[8,1,9,1],[50,1,54,1],[55,1,58,1],[59,1,62,1],[1,1,1,4],[4,1,5,1],[34,1,37,1],[38,1,39,1],[40,1,42,1],[63,1,65,1],[66,1,67,1],[68,1,70,1],[71,1,77,1],[78,1,81,1],[82,1,85,1],[86,1,92,1],[93,1,98,1],[99,1,102,1],[103,1,108,1],[132,1,140,1],[109,1,118,1],[119,1,124,1],[125,1,127,1],[128,1,131,1]]}
[]
[null,"MEETING AND TRAINING IN JANUARY 2025"]
[null,"DATE","AGENDA","NUMBER OF PEOPLE","CONSUMPTION"]
[null,"2025-03-01","Mine planning",15,"Break fast, Lunch"]
[null,"20/1/2025","Budget review",12,"Break fast, Lunch"]
[null,null,"Values ,Vision and Performance management training",33,"Break fast, Lunch"]
[null,"27/1/2025 to 31/1/2025","Supervisory programme Phase B Group 8 training",18,"Break fast, Lunch"]
[null,"30/1/2025","Site store Assistant training",26,"Break fast, Lunch"]
[null,"31/1/2025","Geologist Training",15,"Break fast, Lunch"]
[null,null,"Engagement with GM,HODs, HR department and REWU",40,"Beer and softdrink"]
[]
[]
[]
[null,null,"CONSUMPTION","NUMBER OF PEOPLE","UNITY PRICE","TOTAL AMOUNT"]
[null,null,"Lunch for The guest in camp(Weekend)(kawunga &meat)",1,6000,{"$f":"E15*D15","v":6000}]
[null,null,"Lunch for the training",225,4000,{"$f":"E16*D16","v":900000}]
[null,null,"Lunch for the visitor",83,3000,249000]
[null,null,"Lunch for The guest in camp(Weekend)(Chips,meat & dessert)",5,5000,25000]
[null,null,"Softdrinks for the Guests and visitors ",134,1200,160800]
[null,null,"Softdrinks and beer for Mining plan",1,230100,230100]
[null,null,"Break fast for group finance training",4,3500,14000]
[null,null,"Dinner for The guest in camp(Fish burger)",20,8000,160000]
[null,null,"Softdrinks and beer for The guest in camp",1,51300,51300]
[null,null,"Dinner for The guest in camp( chicken burger)",32,6500,208000]
[null,null,"Dinner for The guest in camp( Fish brochette, chips)",3,9500,28500]
[null,null,"Lunch for The guest in camp( Fish and chips)",2,12500,25000]
[null,null,"Dinner for The guest in camp( Rabit and chips)",3,10500,31500]
[null,null,"Function for Recognition of KaramboTunnel",1,1567600,1567600]
[null,null,"Engagement with GM,HODs, HR department and REWU",1,217300,217300]
[null,null,"Accomodation for Supervisory training(5 days)",30,15000,450000]
[]
[null,null,null,null,"TOTAL",{"$f":"SUM(F15:F30)","v":4324100}]
[]
[null,"DATE","CONSUMPTION","NUMBER OF PEOPLE","UNITY PRICE","TOTAL AMOUNT"]
[null,"2025-03-01","Lunch for mine planner",15,4000,{"$f":"D35*E35","v":60000}]
[null,null,"Lunch for Auditor",4,3000,{"$f":"D36*E36","v":12000}]
[null,null,"Soft drink for Auditor",4,1200,4800]
[null,null,"Drinks for Mining plan",1,230100,230100]
[null,"2025-08-01","Lunch for Environment Visitor",5,3000,15000]
[null,null,"Soft drink for Environment Visitor",6,1200,7200]
[null,"2025-10-01","Breakfast for finance group training",4,3500,14000]
[null,null,"Lunch for finance group training",3,3000,9000]
[null,null,"Soft drink for finance group training",2,1200,2400]
[null,"2025-11-01","Dinner for The guest in camp",1,8000,8000]
[null,"13/1/2025","Lunch for (ETEK) GUEST",5,5000,25000]
[null,null,"Lunch for The guest in camp",3,3000,9000]
[null,null,"Drinks for the guest in camp",1,13800,13800]
[null,null,"Water for (ETEK) GUEST",2,1200,2400]
[null,null,"Dinner for The guest in camp( chicken)",1,6500,6500]
[null,null,"Dinner for The guest in camp(Fish, Rabbit)",3,9500,28500]
[null,"14/1/2025","Lunch for The guest in camp",3,3000,9000]
[null,null,"Softdrink for The guest in camp",2,1200,2400]
[null,null,"Dinner for The guest in camp( chicken)",5,6500,32500]
[null,null,"Dinner for The guest in camp( Fish)",1,8000,8000]
[null,null,"Softdrink and beer for the guest in camp",1,12700,12700]
[null,"15/1/2025","Lunch for The guest in camp",2,3000,6000]
[null,null,"Dinner for The guest in camp( chicken)",3,6500,19500]
[null,null,"Dinner for The guest in camp( Fish)",1,8000,8000]
[null,null,"Drinks for The guest in camp",1,10000,10000]
[null,"16/1/2025","Breakfast for (Land acquisition) Guest",3,6500,19500]
[null,null,"Lunch for (Land acquisition) Guest",4,3000,12000]
[null,null,"Softdrink for (Land acquisition) Guest",6,1200,7200]
[null,null,"Dinner for The guest in camp( chicken)",2,6500,13000]
[null,"17/1/2025","Lunch for The guest in camp",5,3000,15000]
[null,null,"Drinks for The guest in camp",1,14800,14800]
[null,null,"Dinner for The guest in camp( chicken)",2,6500,13000]
[null,"18/1/2025","Dinner for The guest in camp( chicken)",2,6500,13000]
[null,null,"Softdrink for The guest in camp",2,1200,2400]
[null,"19/1/2025","Lunch for The guest in camp(Weekend)",2,12500,25000]
[null,null,"Lunch for The guest in camp(ugali ,meat) (Weekend)",1,3000,3000]
[null,null,"Softdrink for The guest in camp",5,1200,6000]
[null,"20/1/2025","Dinner for The guest in camp( Spagetti bolognaise)",2,8000,16000]
[null,null,"Dinner for The guest in camp( Fish brochette, chips)",1,10500,10500]
[null,null,"Lunch for The guest in camp",1,3000,3000]
[null,null,"Softdrink for The guest in camp",3,1200,3600]
[null,null,"Lunch for budget review",12,4000,48000]
[null,null,"Softdrink for budget review",12,1200,14400]
[null,null,"Lunch for Values ,Vision and Performance management training",33,4000,132000]
[null,"21/1/2025","Lunch for The guest in camp",1,3000,3000]
[null,null,"Softdrink for The guest in camp",5,1200,6000]
[null,null,"Dinner for The guest in camp( Spagetti bolognaise)",1,8000,8000]
[null,null,"Dinner for The guest in camp( chicken)",1,6500,6500]
[null,"22/1/2025","Lunch for The guest in camp",1,3000,3000]
[null,null,"Dinner for The guest in camp( Fish brochette, chips)",3,8000,24000]
[null,null,"Dinner for The guest in camp( chicken)",1,6500,6500]
[null,null,"Softdrink for The guest in camp",6,1200,7200]
[null,"23/1/2025","Lunch for CFO",1,3000,3000]
[null,null,"Softdrink for CFO",1,1200,1200]
[null,null,"Lunch for Auditor(Finance)",4,3000,12000]
[null,null,"Lunch for The guest in camp",2,3000,6000]
[null,null,"Dinner for The guest in camp( Spagetti bolognaise)",4,8000,32000]
[null,null,"Dinner for The guest in camp( chicken)",1,6500,6500]
[null,null,"Softdrink for The guest in camp",7,1200,8400]
[null,"24/1/2025","Lunch for CFO",1,3000,3000]
[null,null,"Softdrink for CFO",1,1200,1200]
[null,null,"Lunch for The guest in camp",1,3000,3000]
[null,null,"Dinner for The guest in camp( chicken and sweetfood)",2,10500,21000]
[null,null,"Dinner for The guest in camp( Beef cheese)",1,6500,6500]
[null,null,"Softdrink for The guest in camp",3,1200,3600]
[null,"25/1/2025","Function for Recognition of KaramboTunnel",1,1567600,1567600]
[null,null,"Lunch for The guest in camp",1,6000,6000]
[null,null,"Dinner for The guest in camp( Beef cheese)",1,6500,6500]
[null,null,"Softdrink for The guest in camp",2,1200,2400]
[null,"26/1/2025","Dinner for The guest in camp( chicken)",1,6500,6500]
[null,null,"Lunch for The guest in camp(Beef burger)",1,6500,6500]
[null,null,"Dinner for Supervisory training(5 days)",29,4000,116000]
[null,null,"Dinner for The guest in camp( Fish burger)",2,8000,16000]
[null,null,"Softdrink for The guest in camp",3,1200,3600]
[null,null,"Accomodation for Supervisory training(5 days)",30,15000,450000]
[null,"27/1/2025","Lunch for Supervisory training(5 days)",90,4000,360000]
[null,null,"Lunch for Procurement (visitor) ",5,4000,20000]
[null,null,"Lunch for The guest in camp",1,3000,3000]
[null,null,"Softdrinks for Procurement (visitor) ",5,1200,6000]
[null,null,"Softdrink for The guest in camp",5,1200,6000]
[null,null,"Dinner for The guest in camp( Fish)",2,8000,16000]
[null,null,"Dinner for The guest in camp( Spagetti bolognaise)",2,8000,16000]
[null,null,"Dinner for The guest in camp( Beef cheese)",1,6500,6500]
[null,null,"GM lunch",1,3000,3000]
[null,null,"Soft drinks (Big fanta)",1,3000,3000]
[null,"28/1/2025","Lunch for SHEC committe",13,3000,39000]
[null,null,"Softdrinks for SHEC committee",13,1200,15600]
[null,null,"Lunch for The guest in camp",1,3000,3000]
[null,null,"Dinner for The guest in camp(igisafuriya)",1,6500,6500]
[null,null,"Dinner for The guest in camp( Fish)",1,8000,8000]
[null,null,"Dinner for The guest in camp( chicken)",1,6500,6500]
[null,"29/1/2025","Lunch for The guest in camp",1,3000,3000]
[null,null,"Dinner for The guest in camp( chicken)",1,6500,6500]
[null,null,"Softdrink for The guest in camp",5,1200,6000]
[null,"30/1/2025","Lunch for The guest in camp",1,3000,3000]
[null,null,"Dinner for The guest in camp( chicken)",2,6500,13000]
[null,null,"Softdrink for The guest in camp",7,1200,8400]
[null,null,"Site store Assistant training",26,4000,104000]
[null,"31/1/2025","Geologist Training",15,4000,60000]
[null,null,"Engagement with GM,HODs, HR department and REWU",1,217300,217300]
[null,null,"Lunch for CFO",1,3000,3000]
[null,null,"Softdrink for CFO",1,1200,1200]
[null,null,"Lunch for GM visitor (Deputy)",20,3000,60000]
[null,null,"Softdrink for GM visitor (Deputy)",20,1200,24000]
[null,null,"Lunch for The guest in camp",1,3000,3000]
[null,null,"Dinner for The guest in camp( Beef )",1,6500,6500]
[null,null,"Softdrink for The guest in camp",6,1200,7200]
[]
[null,null,null,null,"Total",{"$f":"SUM(F35:F141)","v":4324100}]

{"sheet":"Meeting February 2025","index":20,"n_rows":132,"n_cols":6,"rows_kept":132,"cut":false,"hidden":true,"merged":[[1,1,1,4],[106,1,114,1],[115,1,117,1],[118,1,121,1],[122,1,129,1],[50,1,52,1],[53,1,57,1],[59,1,65,1],[66,1,70,1],[71,1,77,1],[78,1,82,1],[83,1,89,1],[90,1,91,1],[92,1,95,1],[96,1,99,1],[37,1,40,1],[41,1,42,1],[43,1,44,1],[45,1,49,1],[100,1,105,1],[3,1,4,1],[10,1,11,1]]}
[]
[null,"MEETING AND TRAINING IN FEBRUARY 2025"]
[null,"DATE","AGENDA","NUMBER OF PEOPLE","CONSUMPTION"]
[null,"4/2/2025 to 8/2/2025 ","Blasting assistant training",22,"Breakfast,lunch"]
[null,null,"Safety representative training ",23,"Breakfast,lunch"]
[null,"10/2/2025 to 11/2/2025","Blasting assistant training",21,"Breakfast,lunch"]
[null,"17/2/2025 to 18/2/2025","PPE & Hand tools training",14,"Breakfast,lunch"]
[null,"20/2/2025","HIRA training",9,"Breakfast,lunch"]
[null,"21/2/2025","SHEC Summit",75,"Breakfast,lunch, drinks& dinner"]
[null,"24/2/2025 to 25/2/2025","Accident/incident training",21,"Breakfast,lunch"]
[null,"26/2/2025","Gamiko visit ",18,"Breakfast,lunch"]
[null,null,"  Look out /Tag out",14,"Breakfast,lunch"]
[null,"27/2/2025 to 28/2/2025","  5 X S  (S: Sort, Set, Shine, Standardize & Sustain) Engineering Training",8,"Breakfast,lunch"]
[]
[]
[null,null,"CONSUMPTION","NUMBER OF PEOPLE","UNITY PRICE","TOTAL AMOUNT"]
[null,null,"Soft drink for the guest in camp",1,1800,{"$f":"D17*E17","v":1800}]
[null,null,"Softdrinks for the Guests and visitors ",80,1200,{"$f":"D18*E18","v":96000}]
[null,null,"Lunch for the Guest & visitor",41,3000,123000]
[null,null,"Lunch for panel of exam in Engeneering",4,3500,14000]
[null,null,"Lunch for all trainings",336,4000,1344000]
[null,null,"Toilet paper",5,4500,22500]
[null,null,"Lunch for GM visitor",5,5000,25000]
[null,null,"Drinks for GM visitors",1,103900,103900]
[null,null,"Dinner for the guest in camp",35,8000,280000]
[null,null,"Dinner for the guest in camp(Beef Brochette& chips)",2,9500,19000]
[null,null,"Dinner for the guest in camp(Brochette& chips)",1,11000,11000]
[null,null,"Dinner for the guest in camp(Half chiken &chips)",2,13500,27000]
[null,null,"Refreshment for Football prayer",1,96000,96000]
[null,null,"Consumption for SHEC Summit(breakfast,lunch&beer)",1,2914800,2914800]
[]
[null,null,null,null,"Total",{"$f":"SUM(F17:F30)","v":5078000}]
[]
[]
[]
[null,"DATE","CONSUMPTION","NUMBER OF PEOPLE","UNITY PRICE","TOTAL AMOUNT"]
[]
[null,"2025-01-02","Lunch for the guest in camp( Potatoes & beef)",1,4000,{"$f":"D38*E38","v":4000}]
[null,null,"Dinner for the guest in camp(Beef burger)",1,8000,{"$f":"D39*E39","v":8000}]
[null,null,"Toilet paper",5,4500,22500]
[null,null,"Soft drink for the guest in camp",2,1200,2400]
[null,"2025-02-02","Dinner for the guest in camp(Fish & chips)",2,8000,16000]
[null,null,"Soft drink for the guest in camp",2,1200,2400]
[null,"2025-03-02","Dinner for the guest in camp(Fish vegetables)",3,8000,24000]
[null,null,"Dinner for the guest in camp(Fish burger)",1,8000,8000]
[null,"2025-04-02","Blasting assistant training(22 peoples for 5 days)",110,4000,440000]
[null,null,"Safety representative training (23 peoples for 4 days)",92,4000,368000]
[null,null,"Dinner for the guest in camp(Fish vegetables)",2,8000,16000]
[null,null,"Dinner for the guest in camp(Chiken burger)",1,8000,8000]
[null,null,"Drinks for the guest in camp",1,1000,1000]
[null,"2025-06-02","Drinks for GM visitors",1,6500,6500]
[null,null,"Dinner for the guest in camp(Fish & chips)",1,8000,8000]
[null,null,"Soft drink for the guest in camp",1,1200,1200]
[null,"2025-07-02","Dinner for the guest in camp(Spagett bolognesse)",1,8000,8000]
[null,null,"Dinner for the guest in camp(Fish vegetables)",1,8000,8000]
[null,null,"Soft drink for the guest in camp",2,1200,2400]
[null,null,"Lunch for musha driver",1,3000,3000]
[null,null,"Refreshment for Football prayer",1,96000,96000]
[null,"2025-08-02","Dinner for COO( Fish chips & salade)",1,8000,8000]
[null,"2025-10-02","Blasting assistant training(21 peoples for 2 days)",42,4000,168000]
[null,null,"Lunch for visitor from Musha",3,3000,9000]
[null,null,"Soft drink for visitor from Musha",3,1200,3600]
[null,null,"Drinks for GM visitors",1,31100,31100]
[null,null,"Softdrinks for ESSI Nyamirambo visit",26,1200,31200]
[null,null,"Dinner for the guest in camp(Brochette& chips)",1,9500,9500]
[null,null,"Soft drink for the guest in camp",1,1200,1200]
[null,"2025-11-02","Lunch for panel of ambulance driver exam",4,3000,12000]
[null,null,"Softdrinks for panel of ambulance driver exam",4,1200,4800]
[null,null,"Lunch for COO",1,3000,3000]
[null,null,"Dinner for COO( Spaghetti bolognesse)",1,8000,8000]
[null,null,"Lunch for 2 driver from musha",2,3000,6000]
[null,"2025-12-02","Lunch for panel of exam in Engeneering",4,3500,14000]
[null,null,"Lunch for finance visitor",3,3000,9000]
[null,null,"Lunch for driver from musha",1,3000,3000]
[null,null,"Lunch for the guest in camp",1,3000,3000]
[null,null,"Dinner for the guest in camp(Fish burger)",1,8000,8000]
[null,null,"Dinner for COO( Beef brochette & chips)",1,9500,9500]
[null,null,"Soft drink for the guest in camp",1,800,800]
[null,"13/2/2025","Lunch for the guest in camp",1,3000,3000]
[null,null,"Drinks for GM",1,7000,7000]
[null,null,"Dinner for COO( Chicken & chips)",1,8000,8000]
[null,null,"Dinner for the guest in camp(Fish & chips)",1,8000,8000]
[null,null,"Soft drink for the guest in camp",4,1200,4800]
[null,"14/2/2025","Lunch for GM visitor",5,5000,25000]
[null,null,"Drinks for GM visitors",1,41000,41000]
[null,null,"Lunch for the guest in camp",2,3000,6000]
[null,null,"Lunch for driver from musha",1,3000,3000]
[null,null,"Dinner for the guest in camp(Chiken burger)",1,8000,8000]
[null,null,"Dinner for the guest in camp(Spagetti bolognesse)",1,8000,8000]
[null,null,"Soft drink for the guest in camp",5,1200,6000]
[null,"16/2/2025","Dinner for the guest in camp(Half chiken &chips)",1,13500,13500]
[null,null,"Soft drink for the guest in camp",3,1200,3600]
[null,"17/2/2025","PPE & Hand tools training(14 peoples for 2 days)",28,4000,112000]
[null,null,"Lunch for the guest in camp",2,3000,6000]
[null,null,"Dinner for the guest in camp(Fish vegetables)",3,8000,24000]
[null,null,"Soft drink for the guest in camp",3,1200,3600]
[null,"18/2/2025","Lunch for the guest in camp",2,3000,6000]
[null,null,"Dinner for the guest in camp(Fish & chips)",1,8000,8000]
[null,null,"Dinner for the guest in camp(Chicken & chips)",1,8000,8000]
[null,null,"Soft drink for the guest in camp",4,1200,4800]
[null,"19/2/2025","Lunch for the guest in camp",2,3000,6000]
[null,null,"Lunch for driver from musha",1,3000,3000]
[null,null,"Drinks for GM visitors",1,18300,18300]
[null,null,"Dinner for the guest in camp(Chiken burger)",1,8000,{"$f":"D104*E104","v":8000}]
[null,null,"Dinner for the guest in camp(Fish vegetables)",1,8000,8000]
[null,null,"Soft drink for the guest in camp",3,1200,3600]
[null,"20/2/2025","Lunch for GM visitor",3,3000,9000]
[null,null,"Soft drinks for GM visitor",2,1200,2400]
[null,null,"Lunch for HIRA training",9,4000,36000]
[null,null,"Lunch for End review meeting",12,4000,48000]
[null,null,"Lunch for the guest in camp",2,3000,6000]
[null,null,"Dinner for the guest in camp(Fish vegetables)",1,8000,8000]
[null,null,"Dinner for the guest in camp(Chicken & chips)",1,8000,8000]
[null,null,"Dinner for the guest in camp(Half chiken &chips)",1,13500,13500]
[null,null,"Soft drink for the guest in camp",7,1200,8400]
[null,"21/2/2025","Dinner for the guest in camp(Fish vegetables)",2,8000,16000]
[null,null,"Soft drink for the guest in camp",1,1200,1200]
[null,null,"Consumption for SHEC Summit(breakfast,lunch&beer)",1,2914800,2914800]
[null,"22/2/2025","Lunch for the guest in camp",1,3000,3000]
[null,null,"Dinner for COO( Chicken burger)",1,8000,8000]
[null,null,"Dinner for the guest in camp(Brochette& chips)",1,11000,11000]
[null,null,"Soft drink for the guest in camp",4,1200,4800]
[null,"24/2/2025","Lunch for accident/incident training(21 people in 2 days)",42,4000,168000]
[null,null,"Lunch for HR visitors",5,3000,15000]
[null,null,"Lunch fo musha driver",1,3000,3000]
[null,null,"Lunch for RM visitors",2,3000,6000]
[null,null,"Soft drink for the guest in camp",3,1200,3600]
[null,null,"Dinner for the guest in camp(Fish vegetables)",1,8000,8000]
[null,null,"Dinner for COO( Spaghetti bolognesse)",1,8000,8000]
[null,null,"Drinks for GM",1,8000,8000]
[]
[null,null,null,null,"Total",{"$f":"SUM(F38:F130)","v":5078000}]

{"sheet":"Guest February 2025","index":21,"n_rows":11,"n_cols":4,"rows_kept":11,"cut":false,"hidden":true,"merged":[]}
[]
[null,"NAMES","DEPARTMENT","TIME IN - TIME OUT"]
[null,"William nyanungu","Engeneering","2/1/2025 - up to now"]
[null,"Pieter Albert","H.R","26/1/2025 - 6/2/2025"]
[null,"Frans","H.R","26/1/2025 - 8/2/2025"]
[null,"Christopher","Mining","16/1/2025 - 15/2/2025"]
[null,"Fanie ferreira","H.R","2/2/2025 - 15/2/2025"]
[null,"Shane Ryan","COO","2/2/2025 - up to now"]
[null,"Chandella abdallah","H.R","16/2/2025 - 24/2/2025"]
[null,"Pieter Albert","H.R","16/2/2025 - 3/3/2025"]
[null,"Tymothy makubo ","Supply chain","18/1/2025 - 22/2/2025"]

{"sheet":"Meeting March 2025","index":22,"n_rows":114,"n_cols":8,"rows_kept":114,"cut":false,"hidden":true,"merged":[[106,1,109,1],[36,1,39,1],[47,1,50,1],[51,1,52,1],[53,1,54,1],[55,1,57,1],[71,1,73,1],[74,1,75,1],[58,1,60,1],[61,1,64,1],[65,1,70,1],[76,1,80,1],[86,1,89,1],[90,1,95,1],[96,1,99,1],[81,1,85,1],[1,1,1,4],[40,1,42,1],[43,1,46,1],[10,2,10,5],[104,1,105,1],[101,1,102,1]]}
[]
[null,"MEETING AND TRAINING IN MARCH 2025"]
[null,"DATE","AGENDA","NUMBER OF PEOPLE","CONSUMPTION"]
[null,"2025-04-03","Rewu Meeting",12,"Breakfast, Lunch"]
[null,"10/3/2025-11/3/2025"," HOD'S POLC training",6,"Breakfast, Lunch"]
[null,"13/3/2025","POLC Leadership training",5,"Breakfast, Lunch"]
[null,"14/3/2025"," LOTO training",17,"Breakfast, Lunch"]
[null,"20/3/2025","Monthly Review Meeting",15,"Breakfast",null,null," "]
[]
[]
[null,null,"CONSUMPTION SUMMARY IN MARCH"]
[]
[null,null,"CONSUMPTION","NUMBER OF PEOPLE","UNITY PRICE","TOTAL AMOUNT"]
[null,null,"Softdrinks for visitors(camp & visitor)",10,1200,{"$f":"E14*D14","v":12000}]
[null,null,"Softdrinks for visitors(camp & visitor)",5,1300,{"$f":"E15*D15","v":6500}]
[null,null,"Lunch for RM visitors",47,3000,141000]
[null,null,"Dinner for COO (chips)",2,3500,7000]
[null,null,"Lunch for trainings",118,4000,472000]
[null,null,"Drinks for GM visitor",1,135900,135900]
[null,null,"Lunch for Minister visit delegation",8,5000,40000]
[null,null,"Dinner for Camp Guest(Beef burger)",10,8000,80000]
[null,null,"Dinner for Camp Guest(2 beef brochet& chips)",1,9500,9500]
[null,null,"Dinner for Camp guest(2 beef, joroforice +chips)",2,10000,20000]
[null,null,"Inyange Water",3,12000,36000]
[null,null,"Decoration for SHEC Summit",1,26000,26000]
[null,null,"Softdrink for Minister visit delegation",1,28700,28700]
[null,null,"Lunch for Rescue Team refreshment",1,50200,50200]
[null,null,"Drinks for Rescue Team refreshment",1,21600,21600]
[null,null,"Umuganda",1,158700,158700]
[]
[]
[null,null,null,null,"Total",{"$f":"SUM(F14:F31)","v":1245100}]
[]
[]
[]
[null,"DATE","CONSUMPTION","NUMBER OF PEOPLE","UNITY PRICE","TOTAL AMOUNT"]
[null,"25/2/2025","Meeting of GM with Site cordinator",1,53700,{"$f":"D37*E37","v":53700}]
[null,null,"Lunch for COO",1,4000,{"$f":"D38*E38","v":4000}]
[null,null,"Decoration for SHEC Summit",1,26000,26000]
[null,null,"Dinner for Albert(spagetti bolongese)",1,8000,8000]
[null,"26/2/2025","Lunch for Gamiko visitor",18,4000,72000]
[null,null,"Lunch for Look out /Tag out training",15,4000,60000]
[null,null,"Dinner for COO(2 beef brochet& chips)",1,9500,9500]
[null,"27/2/2025","Lunch for Albert",1,3000,3000]
[null,null,"Dinner pieter(fish vegeta)",1,8000,8000]
[null,null,"Drinks for Albert",1,1200,1200]
[null,null,"Drinks for Albert",1,1300,1300]
[null,"28/2/2025","Dinner for Albert (chicken)",1,8000,8000]
[null,null,"Drinks for COO",1,1300,1300]
[null,null,"Dinner for COO(2 beef, joroforice +chips)",1,10000,10000]
[null,null,"Lunch for 5 X S training(2 days)",16,4000,64000]
[null,"2025-01-03","Dinner Albert(fish burger)",1,8000,8000]
[null,null,"Drinks for Albert",2,1200,2400]
[null,"2025-04-03","Lunch for Rewu Meeting",12,3000,36000]
[null,null,"Lunch for COO",1,3000,3000]
[null,"2025-05-03","Dinner for COO(Rice&chips)+2Beef brochette",1,10000,10000]
[null,null,"Lunch for Musha Driver",1,3000,3000]
[null,null,"Drink for Musha Driver",1,1200,1200]
[null,"2025-06-03","Inyange Water",3,12000,36000]
[null,null,"Lunch for Panel of training &development",10,3000,30000]
[null,null,"Lunch for Musha Driver",1,3000,3000]
[null,"2025-07-03","Lunch for CFO",1,3000,3000]
[null,null,"Drinks for CFO",1,1200,1200]
[null,null,"Lunch for Musha Driver",1,3000,3000]
[null,null,"Drinks for musha driver",1,1200,1200]
[null,"2025-10-03","Lunch for panel of driver exam",8,3000,24000]
[null,null,"Lunch for COO",1,4000,4000]
[null,null,"Lunch for Rina",1,3000,3000]
[null,null,"GM visitor(start of IPRS training)",1,56300,56300]
[null,null,"Dinner for Rina (Fish & salade)",1,8000,8000]
[null,null,"Drinks for Rina",1,1200,1200]
[null,"2025-11-03","Lunch for HOD POLC training",6,4000,24000]
[null,null,"Dinner for Rina (Beef burger)",1,8000,8000]
[null,null,"Dinner for Jo Daneel's (Beef burger)",1,8000,8000]
[null,"2025-12-03","Lunch for Minister visit delegation",8,5000,40000]
[null,null,"Softdrink for Minister visit delegation",1,28700,28700]
[null,"13/3/2025","Lunch for COO",1,4000,4000]
[null,null,"Lunch for Jo Daneel's",1,4000,4000]
[null,null,"Lunch for Rina ",1,4000,4000]
[null,null,"Lunch for CFO",1,4000,4000]
[null,null,"Drinks for GM visitor",1,6000,6000]
[null,"14/3/2025","Lunch for LOTO training",17,4000,68000]
[null,null,"Lunch for Musha Driver",1,3000,3000]
[null,null,"Drinks for musha driver",2,1300,2600]
[null,null,"Lunch for COO",1,4000,4000]
[null,null,"Drinks for COO",1,1300,1300]
[null,"18/3/2025","Lunch for GM",1,3000,3000]
[null,null,"Lunch for COO",1,3000,3000]
[null,null,"Lunch for tristan",1,3000,{"$f":"D89*E89","v":3000}]
[null,null,"GM visitors",1,15400,15400]
[null,"19/3/2025","Lunch for COO",1,3000,3000]
[null,null,"Lunch for GM",1,3000,3000]
[null,null,"Lunch for tristan",1,3000,3000]
[null,null,"Lunch for Gerrit",1,3000,3000]
[null,null,"Softdrink for them",3,1200,3600]
[null,null,"Dinner for COO (chips)",1,3500,3500]
[null,"20/3/2025","Lunch for COO",1,4000,4000]
[null,null,"Lunch for Jo Daneel's",1,4000,4000]
[null,null,"Lunch for CFO",1,4000,4000]
[null,null,"Dinner for COO (chips)",1,3500,3500]
[null,"21/3/2025","Dinner for COO ( joroffo rice & chips)",1,8000,8000]
[null,"24/3/2025","Lunch for mixing team(Upgrading plant)",28,4000,112000]
[null,null,"Dinner for COO( spaghetti bolongese)",1,8000,8000]
[null,"26/3/2025","Dinner for COO ( joroffo rice & chips)",1,8000,8000]
[null,"27/3/2025","Lunch for Rescue Team refreshment",1,50200,50200]
[null,null,"Drinks for GM visitor",1,4500,4500]
[null,"28/3/2025","Lunch for Rescue Team refreshment",8,4000,32000]
[null,null,"Drinks for Rescue Team refreshment",1,21600,21600]
[null,null,"Lunch for CFO",1,3000,3000]
[null,null,"Lunch for COO",1,3000,3000]
[null,"29/3/2025","Umuganda",1,158700,158700]
[]
[]
[null,null,null,null,"Total",{"$f":"SUM(F37:F111)","v":1245100}]

{"sheet":"Guest March 2025","index":23,"n_rows":6,"n_cols":4,"rows_kept":6,"cut":false,"hidden":true,"merged":[]}
[]
[null,"NAMES","DEPARTMENT","TIME IN - TIME OUT"]
[null,"Shane ryan","COO","2/2/2025 - up to now"]
[null,"Jo Daneel's ","Environment","10/3/2025 - 22/3/2025"]
[null,"Rina muller","HR","9/3/2025 - 21/3/2025"]
[null,"William nyanungu","Engeneering","2/1/2025 - 14/3/2025"]

{"sheet":"Meeting April 2025","index":24,"n_rows":50,"n_cols":6,"rows_kept":50,"cut":false,"hidden":true,"merged":[[1,1,1,3],[31,1,35,1],[36,1,37,1],[42,1,46,1],[39,1,40,1],[8,2,8,5],[29,1,30,1]]}
[]
[null,"MEETING AND TRAINING IN APRIL 2025"]
[null,"DATE","AGENDA","NUMBER OF PEOPLE"]
[null,"2025-01-04","Task force meeting",20]
[null,"2025-10-04","CEO Engagement with Supervisors and Group staff",96]
[null,"16/4/2025","Rutongo Mines Meeting with Crops Africa",9]
[]
[]
[null,null,"CONSUMPTION SUMMARY IN APRIL"]
[]
[null,null,"CONSUMPTION","NUMBER OF PEOPLE","UNITY PRICE","TOTAL AMOUNT"]
[null,null,"Bananes for Rutongo mines football team",50,200,{"$f":"D12*E12","v":10000}]
[null,null,"Softdrinks for guest",1,1200,{"$f":"D13*E13","v":1200}]
[null,null,"African tea for Guest",1,2500,2500]
[null,null,"Lunch and breakfast(Team) for Rutongo Mines visitors",77,3000,231000]
[null,null,"GM visitor drinks",1,163500,163500]
[null,null,"Dinner for Martina(fish , banana & salade)",1,9200,9200]
[null,null,"Inyange Water box",6,12000,72000]
[null,null,"Toilet paper",3,4500,13500]
[null,null,"Juice box",3,15600,46800]
[null,null,"Task force meeting",1,273300,273300]
[]
[]
[null,null,null,null,"Total",{"$f":"SUM(F12:F23)","v":823000}]
[]
[]
[]
[null,"DATE","CONSUMPTION","NUMBER OF PEOPLE","UNITY PRICE","TOTAL AMOUNT"]
[null,"2025-01-04","Task force meeting",1,273300,{"$f":"D29*E29","v":273300}]
[null,"2025-02-04","Lunch for Michael",1,3000,{"$f":"D30*E30","v":3000}]
[null,null,"Lunch for Rutongo mines visitor",1,3000,3000]
[null,"2025-03-04","Lunch for michael",1,3000,3000]
[null,null,"Lunch fo Martina",1,3000,3000]
[null,null,"Softdrink for Martina",1,1200,1200]
[null,null,"Dinner for Martina(fish , banana & salade)",1,9200,9200]
[null,null,"African tea for Martina",1,2500,2500]
[null,"2025-04-04","GM drinks",1,3000,3000]
[null,null,"Lunch for Michael",1,3000,3000]
[null,"2025-05-04","GM visitors drinks",1,6000,6000]
[null,"14/4/2025","Water ",1,12000,12000]
[null,null,"Toilet paper",3,4500,13500]
[null,"21/4/2025","Lunch for mixing team",11,3000,33000]
[null,"24/4/2025","GM visitors drinks",1,157500,157500]
[null,null,"Breakfast for Rutongo football team(2 times) ",60,3000,180000]
[null,null,"Water box",5,12000,60000]
[null,null,"Juice box",3,15600,46800]
[null,null,"Bananes",50,200,10000]
[]
[]
[null,null,null,null,"Total",{"$f":"SUM(F29:F47)","v":823000}]

{"sheet":"Guest April 2025","index":25,"n_rows":12,"n_cols":7,"rows_kept":12,"cut":false,"hidden":true,"merged":[]}
[]
[null,"NAMES","DEPARTMENT","TIME IN - TIME OUT"]
[null,"Shane ryan","COO","2/2/2025 - 2/4/2025"]
[null,"Martina","Environment","3/4/2025 - 4/4/2025"]
[null,"William nyanungu","Engeneering","6/4/2025 - up to now"]
[null,"Sidney","Community","22/4/2025 - 23/4/2025"]
[null,"Shane ryan","COO","29/4/2025 - up to now"]
[null,"Jo Daneel's ","Environment","28/4/2025 - 4/5/2025"]
[]
[]
[null,null,null," "]
[null,null,null,null,null,null," "]

{"sheet":"Meeting May 2025","index":26,"n_rows":78,"n_cols":6,"rows_kept":78,"cut":false,"hidden":true,"merged":[[2,1,2,3],[12,2,12,5],[35,1,38,1],[43,1,44,1],[32,1,33,1],[39,1,41,1],[45,1,47,1],[48,1,50,1],[66,1,68,1],[70,1,74,1],[52,1,54,1],[55,1,59,1],[60,1,62,1],[63,1,65,1]]}
[]
[]
[null,"MEETING AND TRAINING IN MAY 2025"]
[null,"DATE","AGENDA","NUMBER OF PEOPLE"]
[null,"5/5/2025 to 6/5/2025","Tech met visit",15]
[null,"2025-09-05","SHEC Committe",10]
[null,"14/5/2025","Camborne school of mine visit",24]
[null,"20/5/2025 to 22/5/2025","Trinity | 4 sight - site visit(3 days)",16]
[null,"28/5/2025 to 29/5/2025","Physical inspection",20]
[null,"30/5/2025","CFO Townhall Meeting ",60]
[]
[]
[null,null,"CONSUMPTION SUMMARY IN MAY"]
[]
[null,null,"CONSUMPTION","NUMBER OF PEOPLE","UNITY PRICE","TOTAL AMOUNT"]
[null,null,"Soft drinks for techmet visit",19,1000,{"$f":"D16*E16","v":19000}]
[null,null,"Soft drinks for Rutongo mines visitors",18,1200,{"$f":"D17*E17","v":21600}]
[null,null,"Lunch for Rutongo mines visitor ",29,3000,87000]
[null,null,"Dinner fo COO( chips)",1,3500,3500]
[null,null,"Lunch for Rutongo mines visitors and trainings",79,4000,316000]
[null,null,"Dinner for camp guest(Chicken wraps)",5,10000,50000]
[null,null,"Dinner for Camp guest (2brochet &chips)",1,11500,11500]
[null,null,"Dinner for Camp guest (Half chiken&chips)",2,12000,24000]
[null,null,"Dinner for Camp guest (Fish&chips)",1,12500,12500]
[null,null,"GM visitors",1,62600,62600]
[null,null,"Snacks for techmet visit(2 days)",1,63000,63000]
[null,null,"Cow donation celemony",1,106200,106200]
[]
[]
[null,null,null,null,"Total",{"$f":"SUM(F16:F29)","v":776900}]
[]
[null,"DATE","CONSUMPTION","NUMBER OF PEOPLE","UNITY PRICE","TOTAL AMOUNT"]
[null,"31/4/2025","Lunch for COO",1,3000,{"$f":"D33*E33","v":3000}]
[null,null,"Dinner fo COO(fish salade with chips)",1,10000,{"$f":"D34*E34","v":10000}]
[null,"2025-01-05","Lunch for COO",1,3000,3000]
[null,"2025-05-05","Lunch for techmet visit ",15,4000,60000]
[null,null,"Soft drinks for techmet visit",15,1000,15000]
[null,null,"Snacks for techmet visit(2 days)",1,63000,63000]
[null,null,"Dinner fo COO( chips)",1,3500,3500]
[null,"2025-06-05","Lunch for techmet visit ",15,4000,60000]
[null,null,"Soft drinks for techmet visit",4,1000,4000]
[null,null,"Dinner for Jo danniel(2brochet &chips)",1,11500,11500]
[null,"2025-08-05","Dinner fo COO(Chicken wraps)",1,10000,10000]
[null,"2025-09-05","GM visitors",1,62600,62600]
[null,null,"Dinner fo COO(Chicken wraps)",1,10000,10000]
[null,"2025-12-05","Lunch for COO ",1,3000,3000]
[null,null,"Lunch for CFO",1,3000,3000]
[null,null,"Soft drinks for CFO",1,1200,1200]
[null,"13/5/2025","Finance meeting",5,3000,15000]
[null,null,"District visitor",1,3000,3000]
[null,null,"Cow donation celemony",1,106200,106200]
[null,"19/5/2025","Dinner for Jan Jansen (Half chiken&chips)",1,12000,12000]
[null,"20/52025","Lunch for Trinity | 4 sight - site visit",3,3000,9000]
[null,null,"Soft drinks for Trinity | 4 sight - site visit",3,1200,3600]
[null,null,"Dinner for Jan Jansen (Fish&chips)",1,12500,12500]
[null,"21/5/2025","Lunch for Trinity | 4 sight - site visit",3,3000,9000]
[null,null,"Soft drinks for Trinity | 4 sight - site visit",4,3000,12000]
[null,null,"finance Training",6,3000,18000]
[null,null,"Soft drinks for finance Training",6,1200,7200]
[null,null,"Lunch for musha driver",1,3000,3000]
[null,"22/5/2025","Lunch for Trinity | 4 sight - site visit",3,4000,12000]
[null,null,"Soft drinks for Trinity | 4 sight - site visit",3,1200,3600]
[null,null,"Dinner fo COO(Chicken wraps)",1,10000,10000]
[null,"23/5/2025","Dinner fo COO(Chicken wraps)",1,10000,10000]
[null,null,"Lunch Musha Driver",1,3000,3000]
[null,null,"Soft drinks for musha driver",1,1200,1200]
[null,"28/5/2025","Lunch for CFO and COO",2,4000,8000]
[null,null,"Water box",1,12000,12000]
[null,null,"Soft drinks for CFO and COO",2,1200,2400]
[null,"29/5/2025","Lunch for COO",1,3000,3000]
[null,"30/5/2025","Lunch for Mixing team in upgrading plant",31,4000,124000]
[null,null,"Lunch for CFO town hall",12,4000,48000]
[null,null,"Soft drinks for Gracien",1,1200,1200]
[null,null,"Lunch for CFO",1,4000,4000]
[null,null,"Soft drinks for CFO",1,1200,1200]
[]
[]
[null,null,null,null,"Total",{"$f":"SUM(F33:F75)","v":776900}]

{"sheet":"Guest May 2025","index":27,"n_rows":6,"n_cols":4,"rows_kept":6,"cut":false,"hidden":true,"merged":[]}
[]
[null,"NAMES","DEPARTMENT","TIME IN - TIME OUT"]
[null,"Sidney","Community","22/4/2025 - up to now"]
[null,"Shane ryan","COO","29/4/2025 - up to now"]
[null,"Jo Daneel's ","Environment","28/4/2025 - 4/5/2025"]
[null,"Jan Jansen Van Vuurem","IT","19/5/2025 - 23/5/2025"]

{"sheet":"Consumption may 2025 ","index":28,"n_rows":49,"n_cols":6,"rows_kept":49,"cut":false,"hidden":true,"merged":[[41,1,45,1],[3,1,4,1],[6,1,9,1],[10,1,12,1],[14,1,15,1],[16,1,18,1],[19,1,21,1],[23,1,25,1],[26,1,30,1],[31,1,33,1],[34,1,36,1],[37,1,39,1]]}
[]
[]
[null,"DATE","CONSUMPTION","NUMBER OF PEOPLE","UNITY PRICE","TOTAL AMOUNT"]
[null,"31/4/2025","Lunch for COO",1,3000,{"$f":"D4*E4","v":3000}]
[null,null,"Dinner fo COO(fish salade with chips)",1,10000,{"$f":"D5*E5","v":10000}]
[null,"2025-01-05","Lunch for COO",1,3000,3000]
[null,"2025-05-05","Lunch for techmet visit ",15,4000,60000]
[null,null,"Soft drinks for techmet visit",15,1000,15000]
[null,null,"Snacks for techmet visit(2 days)",1,63000,63000]
[null,null,"Dinner fo COO( chips)",1,3500,3500]
[null,"2025-06-05","Lunch for techmet visit ",15,4000,60000]
[null,null,"Soft drinks for techmet visit",4,1000,4000]
[null,null,"Dinner for Jo danniel(2brochet &chips)",1,11500,11500]
[null,"2025-08-05","Dinner fo COO(Chicken wraps)",1,10000,10000]
[null,"2025-09-05","GM visitors",1,62600,62600]
[null,null,"Dinner fo COO(Chicken wraps)",1,10000,10000]
[null,"2025-12-05","Lunch for COO ",1,3000,3000]
[null,null,"Lunch for CFO",1,3000,3000]
[null,null,"Soft drinks for CFO",1,1200,1200]
[null,"13/5/2025","Finance meeting",5,3000,15000]
[null,null,"District visitor",1,3000,3000]
[null,null,"Cow donation celemony",1,106200,106200]
[null,"19/5/2025","Dinner for Jan Jansen (Half chiken&chips)",1,12000,12000]
[null,"20/52025","Lunch for Trinity | 4 sight - site visit",3,3000,9000]
[null,null,"Soft drinks for Trinity | 4 sight - site visit",3,1200,3600]
[null,null,"Dinner for Jan Jansen (Fish&chips)",1,12500,12500]
[null,"21/5/2025","Lunch for Trinity | 4 sight - site visit",3,3000,9000]
[null,null,"Soft drinks for Trinity | 4 sight - site visit",4,3000,12000]
[null,null,"finance Training",6,3000,18000]
[null,null,"Soft drinks for finance Training",6,1200,7200]
[null,null,"Lunch for musha driver",1,3000,3000]
[null,"22/5/2025","Lunch for Trinity | 4 sight - site visit",3,4000,12000]
[null,null,"Soft drinks for Trinity | 4 sight - site visit",3,1200,3600]
[null,null,"Dinner fo COO(Chicken wraps)",1,10000,10000]
[null,"23/5/2025","Dinner fo COO(Chicken wraps)",1,10000,10000]
[null,null,"Lunch Musha Driver",1,3000,3000]
[null,null,"Soft drinks for musha driver",1,1200,1200]
[null,"28/5/2025","Lunch for CFO and COO",2,4000,8000]
[null,null,"Water box",1,12000,12000]
[null,null,"Soft drinks for CFO and COO",2,1200,2400]
[null,"29/5/2025","Lunch for COO",1,3000,3000]
[null,"30/5/2025","Lunch for Mixing team in upgrading plant",31,4000,124000]
[null,null,"Lunch for CFO town hall",12,4000,48000]
[null,null,"Soft drinks for Gracien",1,1200,1200]
[null,null,"Lunch for CFO",1,4000,4000]
[null,null,"Soft drinks for CFO",1,1200,1200]
[]
[]
[null,null,null,null,"Total",{"$f":"SUM(F4:F46)","v":776900}]

{"sheet":"Guest June 2025","index":29,"n_rows":9,"n_cols":4,"rows_kept":9,"cut":false,"hidden":true,"merged":[]}
[]
[null,"NAMES","DEPARTMENT","TIME IN - TIME OUT"]
[null,"Shane Ryan","COO","29/4/2025 - up to now"]
[null,"Sidney","Community","22/4/2025 - up to now"]
[null,"Brink Visagie ","MRM","2/6/2025 to 7/6/2025"]
[null,"Christopher","Mining","7/6/2025 to 16/6/2025"]
[null,"Pieter Albert","HR","22/6/2025 up to now"]
[null,"Frans","HR","22/6/2025 up to now"]
[null,"Jo Daneel","Environment","29/6/2025 up to now"]

{"sheet":"Consumption June 2025 ","index":30,"n_rows":72,"n_cols":6,"rows_kept":72,"cut":false,"hidden":true,"merged":[[21,1,24,1],[25,1,27,1],[28,1,29,1],[30,1,31,1],[2,1,6,1],[7,1,9,1],[11,1,17,1],[19,1,20,1],[65,1,68,1],[32,1,34,1],[35,1,39,1],[45,1,50,1],[51,1,57,1],[58,1,61,1],[62,1,64,1],[40,1,44,1]]}
[]
[null,"DATE","CONSUMPTION","NUMBER OF PEOPLE","UNITY PRICE","TOTAL AMOUNT"]
[null,"2025-02-06","Lunch for macro-mine training(5 times)",100,4000,{"$f":"D3*E3","v":400000}]
[null,null,"Dinner for macro-mine training(5 times)",25,4000,{"$f":"D4*E4","v":100000}]
[null,null,"Accomodation for macro-mine training(5 times)",20,15000,300000]
[null,null,"Lunch for CFO",1,4000,4000]
[null,null,"Drinks for CFO",1,1200,1200]
[null,"2025-05-06","Local administrative entities visity",1,301500,301500]
[null,null,"Transport for local administrative entities",1,97000,97000]
[null,null,"Lunch Min-inter/joint",15,4000,60000]
[null,"2025-07-06","Recognition of T32 tunnel  no LTI for year",1,1629100,1629100]
[null,"2025-09-06","Lunch GM visitors",4,3000,12000]
[null,null,"Drinks for GM visitors",7,1000,7000]
[null,null,"Lunch for COO",1,4000,4000]
[null,null,"Lunch Rescue training(4 times)",56,4000,224000]
[null,null,"Banana for Rescue training(4 times)",104,200,20800]
[null,null,"Dinner for Christopher (Beef brochet &chips)",1,13900,13900]
[null,null,"Drinks for Chris",2,1300,2600]
[null,"2025-10-06","Lunch for COO",1,4000,4000]
[null,"2025-11-06","Lunch for finance manager ",3,3000,9000]
[null,null,"Lunch for COO",1,4000,4000]
[null,"13/6/2025","Lunch for Bussines idea",20,4000,80000]
[null,null,"Drinks for Bussines idea",18,1200,21600]
[null,null,"Lunch for COO",1,4000,4000]
[null,null,"Drinks for GM visitors",1,15600,15600]
[null,"17/6/2025","Lunch for Plant shutdawn coordination",36,4000,144000]
[null,null,"Dinner for  Plant shutdawn coordination",6,4000,24000]
[null,null,"Drinks for  Plant shutdawn coordination",42,1300,54600]
[null,"18/6/2025","Lunch for Rutongo visitors(CFO)",2,4000,8000]
[null,null,"Drinks for Rutongo visitors(CFO)",3,1200,3600]
[null,"19/6/2025","Blasting operation consumption",1,402100,402100]
[null,null,"Accomodation for Blasting operation ",5,15000,75000]
[null,"20/6/2025","Lunch for CFO",1,4000,4000]
[null,null,"Drinks for CFO",1,2500,2500]
[null,null,"Dinner for COO (Chips)",1,3500,3500]
[null,"23/6/2025","Lunch for CFO",1,4000,4000]
[null,null,"Drinks for CFO",1,2500,2500]
[null,null,"Dinner for the Camp guest(fish vegetable)",2,12000,24000]
[null,null,"Drinks for the Camp guest",2,1200,2400]
[null,null,"Water for the Camp guest",2,1300,2600]
[null,"24/6/2025","Lunch for safety representative(2 times)",34,4000,136000]
[null,null,"Drinks for Camp guest",1,5500,5500]
[null,null,"Dinner for the Camp guest(fish vegetable& Chips)",1,12000,12000]
[null,null,"Lunch for CFO & COO",2,4000,8000]
[null,null,"Drinks for CFO & COO",2,1300,2600]
[null,"25/6/2025","Lunch for stock caunt team",30,4000,120000]
[null,null,"Drinks for stock caunt team",30,1300,39000]
[null,null,"Lunch for CFO & Mike",2,4000,8000]
[null,null,"Dinner for the Camp guest(Chicken wraps)",2,10000,20000]
[null,null,"Dinner for the Camp guest(Half chicken)",1,16000,16000]
[null,null,"Drinks for Camp guest",2,1300,2600]
[null,"26/6/2025","Lunch for Accident and incident training(2 times)",26,4000,104000]
[null,null,"Lunch for Charis surveyor",3,4000,12000]
[null,null,"Drinks for Charis surveyor",3,1500,4500]
[null,null,"Dinner for the Camp guest(Chicken wraps)",2,10000,20000]
[null,null,"Dinner for the Camp guest(Hamburger chicken)",1,8500,8500]
[null,null,"Drinks for Camp guest",2,1300,2600]
[null,null,"Lunch for Mike",1,4000,4000]
[null,"27/6/2025","Lunch for CFO & COO",2,4000,8000]
[null,null,"Dinner for the Camp guest(fish vegetable& Chips)",2,10000,20000]
[null,null,"Blasting operation consumption",1,961000,961000]
[null,null,"Accomodation for Blasting operation",5,15000,75000]
[null,"28/6/2025","Dinner for COO (Chicken warps&spagetti bolongeuse)",2,10000,20000]
[null,null,"Dinner for the Camp guest(2 chicken rice)",2,20000,40000]
[null,null,"Drinks for Camp guest",2,1300,2600]
[null,"30/6/2025","Lunch for CFO & COO",2,4000,8000]
[null,null,"Lunch for plant visitors",4,3000,12000]
[null,null,"Dinner for the Camp guest(2 fish vegetable& Chips)",2,12000,24000]
[null,null,"Drinks for Camp guest",2,1300,2600]
[null,"30/5/2025","Snacks for CFO town hall(Last month)",1,120000,120000]
[]
[null,null,null,null,"Total",{"$f":"SUM(F3:F70)","v":5890600}]

{"sheet":"Camp June 2025","index":31,"n_rows":105,"n_cols":5,"rows_kept":105,"cut":false,"hidden":true,"merged":[[73,0,77,0],[2,1,2,4],[35,0,39,0],[40,0,42,0],[44,0,50,0],[52,0,53,0],[54,0,57,0],[58,0,60,0],[61,0,62,0],[63,0,64,0],[65,0,67,0],[68,0,72,0],[78,0,83,0],[84,0,90,0],[91,0,94,0],[95,0,97,0],[98,0,101,0]]}
[]
[]
[null,"CONSUMPTION SUMMARY IN JUNE"]
[]
[null,"CONSUMPTION","NUMBER OF PEOPLE","UNITY PRICE","TOTAL AMOUNT"]
[null,"Banana for Rescue training(4 times)",104,200,{"$f":"C6*D6","v":20800}]
[null,"Drinks for GM visitors",7,1000,7000]
[null,"Drinks for RM visitors & guest (1200 frw)",24,1200,28800]
[null,"Drinks for RM visitors & guest (1300 frw)",86,1300,111800]
[null,"Drinks for Charis surveyor(Panashi)",3,1500,4500]
[null,"Drinks for CFO",2,2500,5000]
[null,"Lunch for RM visitors",11,3000,33000]
[null,"Dinner for COO (Chips)",1,3500,3500]
[null,"Lunch for training & RM visitors",369,4000,1476000]
[null,"Drinks for Camp guest",1,5500,5500]
[null,"Dinner for the Camp guest(Hamburger chicken)",1,8500,8500]
[null,"Dinner for the Camp guest(Chicken wraps)",8,10000,80000]
[null,"Dinner for the Camp guest(2 fish vegetable& Chips)",5,12000,60000]
[null,"Dinner for Christopher (Beef brochet &chips)",1,13900,13900]
[null,"Accomodation for Blasting operation & trainings",30,15000,450000]
[null,"Drinks for GM visitors",1,15600,15600]
[null,"Dinner for the Camp guest(Half chicken)",1,16000,16000]
[null,"Dinner for the Camp guest(2 chicken rice)",2,20000,40000]
[null,"Transport for local administrative entities",1,97000,97000]
[null,"Snacks for CFO town hall(Last month)",1,120000,120000]
[null,"Local administrative entities visit consumption",1,301500,301500]
[null,"Blasting operation consumption (19/6/2025)",1,402100,402100]
[null,"Blasting operation consumption (27/6/2025)",1,961000,961000]
[null,"Recognition of T32 tunnel  no LTI for year",1,1629100,1629100]
[]
[]
[null,null,null,"TOTAL",{"$f":"SUM(E6:E29)","v":5890600}]
[]
[]
["DATE","CONSUMPTION","NUMBER OF PEOPLE","UNITY PRICE","TOTAL AMOUNT"]
["2025-02-06","Lunch for macro-mine training(5 times)",100,4000,{"$f":"C36*D36","v":400000}]
[null,"Dinner for macro-mine training(5 times)",25,4000,{"$f":"C37*D37","v":100000}]
[null,"Accomodation for macro-mine training(5 times)",20,15000,300000]
[null,"Lunch for CFO",1,4000,4000]
[null,"Drinks for CFO",1,1200,1200]
["2025-05-06","Local administrative entities visity",1,301500,301500]
[null,"Transport for local administrative entities",1,97000,97000]
[null,"Lunch Min-inter/joint",15,4000,60000]
["2025-07-06","Recognition of T32 tunnel  no LTI for year",1,1629100,1629100]
["2025-09-06","Lunch GM visitors",4,3000,12000]
[null,"Drinks for GM visitors",7,1000,7000]
[null,"Lunch for COO",1,4000,4000]
[null,"Lunch Rescue training(4 times)",56,4000,224000]
[null,"Banana for Rescue training(4 times)",104,200,20800]
[null,"Dinner for Christopher (Beef brochet &chips)",1,13900,13900]
[null,"Drinks for Chris",2,1300,2600]
["2025-10-06","Lunch for COO",1,4000,4000]
["2025-11-06","Lunch for finance manager ",3,3000,9000]
[null,"Lunch for COO",1,4000,4000]
["13/6/2025","Lunch for Bussines idea",20,4000,80000]
[null,"Drinks for Bussines idea",18,1200,21600]
[null,"Lunch for COO",1,4000,4000]
[null,"Drinks for GM visitors",1,15600,15600]
["17/6/2025","Lunch for Plant shutdawn coordination",36,4000,144000]
[null,"Dinner for  Plant shutdawn coordination",6,4000,24000]
[null,"Drinks for  Plant shutdawn coordination",42,1300,54600]
["18/6/2025","Lunch for Rutongo visitors(CFO)",2,4000,8000]
[null,"Drinks for Rutongo visitors(CFO)",3,1200,3600]
["19/6/2025","Blasting operation consumption",1,402100,402100]
[null,"Accomodation for Blasting operation ",5,15000,75000]
["20/6/2025","Lunch for CFO",1,4000,4000]
[null,"Drinks for CFO",1,2500,2500]
[null,"Dinner for COO (Chips)",1,3500,3500]
["23/6/2025","Lunch for CFO",1,4000,4000]
[null,"Drinks for CFO",1,2500,2500]
[null,"Dinner for the Camp guest(fish vegetable)",2,12000,24000]
[null,"Drinks for the Camp guest",2,1200,2400]
[null,"Water for the Camp guest",2,1300,2600]
["24/6/2025","Lunch for safety representative(2 times)",34,4000,136000]
[null,"Drinks for Camp guest",1,5500,5500]
[null,"Dinner for the Camp guest(fish vegetable& Chips)",1,12000,12000]
[null,"Lunch for CFO & COO",2,4000,8000]
[null,"Drinks for CFO & COO",2,1300,2600]
["25/6/2025","Lunch for stock caunt team",30,4000,120000]
[null,"Drinks for stock caunt team",30,1300,39000]
[null,"Lunch for CFO & Mike",2,4000,8000]
[null,"Dinner for the Camp guest(Chicken wraps)",2,10000,20000]
[null,"Dinner for the Camp guest(Half chicken)",1,16000,16000]
[null,"Drinks for Camp guest",2,1300,2600]
["26/6/2025","Lunch for Accident and incident training(2 times)",26,4000,104000]
[null,"Lunch for Charis surveyor",3,4000,12000]
[null,"Drinks for Charis surveyor",3,1500,4500]
[null,"Dinner for the Camp guest(Chicken wraps)",2,10000,20000]
[null,"Dinner for the Camp guest(Hamburger chicken)",1,8500,8500]
[null,"Drinks for Camp guest",2,1300,2600]
[null,"Lunch for Mike",1,4000,4000]
["27/6/2025","Lunch for CFO & COO",2,4000,8000]
[null,"Dinner for the Camp guest(fish vegetable& Chips)",2,10000,20000]
[null,"Blasting operation consumption",1,961000,961000]
[null,"Accomodation for Blasting operation",5,15000,75000]
["28/6/2025","Dinner for COO (Chicken warps&spagetti bolongeuse)",2,10000,20000]
[null,"Dinner for the Camp guest(2 chicken rice)",2,20000,40000]
[null,"Drinks for Camp guest",2,1300,2600]
["30/6/2025","Lunch for CFO & COO",2,4000,8000]
[null,"Lunch for plant visitors",4,3000,12000]
[null,"Dinner for the Camp guest(2 fish vegetable& Chips)",2,12000,24000]
[null,"Drinks for Camp guest",2,1300,2600]
["30/5/2025","Snacks for CFO town hall(Last month)",1,120000,120000]
[]
[null,null,null,"Total",{"$f":"SUM(E36:E103)","v":5890600}]

{"sheet":"Camp jully 2025","index":32,"n_rows":161,"n_cols":5,"rows_kept":161,"cut":false,"hidden":true,"merged":[[35,0,38,0],[39,0,43,0],[44,0,49,0],[50,0,51,0],[52,0,55,0],[67,0,70,0],[72,0,73,0],[74,0,85,0],[86,0,89,0],[90,0,95,0],[1,0,1,3],[148,0,155,0],[156,0,157,0],[124,0,125,0],[126,0,133,0],[134,0,139,0],[140,0,141,0],[142,0,143,0],[144,0,147,0],[96,0,100,0],[101,0,107,0],[108,0,112,0],[113,0,114,0],[115,0,121,0],[122,0,123,0],[56,0,66,0]]}
[]
["CONSUMPTION SUMMARY IN JULLY"]
[]
["CONSUMPTION","NUMBER OF PEOPLE","UNITY PRICE","TOTAL AMOUNT"]
["Drinks for the guest in the camp& visitors(1000 frw)",16,1000,{"$f":"B5*C5","v":16000}]
["Drinks for the guest in the camp & visitors(1200 frw)",10,1200,{"$f":"B6*C6","v":12000}]
["Drinks for the guest in the camp & visitors(1300 frw)",50,1300,65000]
["Drinks for the guest in the camp & visitors(1500 frw)",2,1500,3000]
["African tea for the guest",2,2500,5000]
["Drinks for Christopher",1,3500,3500]
["Lunch for Training and RM visitors",370,4000,1480000]
["Drinks for Guest in camp",3,5000,15000]
["Drinks for rescue team",1,214800,214800]
["Lunch for Andre(Chicken brochet and chips)",1,7500,7500]
["Breakfast for Investors visit",30,8000,240000]
["Dinner for Guest in camp (spaghetti bolognesse)",5,8500,42500]
["Dinner for Guest in camp (Chicken burger)",4,10000,40000]
["Dinner for Guest in camp (5brochette and chips)",1,11000,11000]
["Dinner for Guest in camp (2 chicken brochette and chips)",3,11500,34500]
["Dinner for Guest in camp (fish vegetable and chips)",19,12000,228000]
["Accomodation for Nyakabingo driver(5 times)",5,15000,75000]
["Dinner for Guest in camp (Chicken wraps & chips)",2,15500,31000]
["Drinks for Province visitors",1,19500,19500]
["Drinks for RIB and Police (Rescue time)",1,19600,19600]
["Lunch for Investors visit",30,25000,750000]
["Lunch for Guest in camp (6beefbrochet& 2chips)",1,31000,31000]
["Dinner for the guest(2chicken brochette,chips,2chicken wraps,chicken stew)",1,45500,45500]
["Lunch for Mayor team in rescue time",1,55700,55700]
["Football team consumption after match",1,65000,65000]
["Softdrinks for Investors visit",1,79500,79500]
[]
[null,null,"TOTAL",{"$f":"SUM(D5:D30)","v":3589600}]
[]
[]
["DATE","CONSUMPTION","NUMBER OF PEOPLE","UNITY PRICE","TOTAL AMOUNT"]
["2025-01-07","Lunch for Jo Daniel",1,4000,{"$f":"C36*D36","v":4000}]
[null,"Drink for Jo Daniel",1,1000,{"$f":"C37*D37","v":1000}]
[null,"Lunch for CFO",1,4000,4000]
[null,"Drink for CFO",1,1300,1300]
["2/7/2025 to 3/7/2025","HIRA training (2times)",28,4000,112000]
[null,"Dinner for Albert(fish vegetable)",2,12000,24000]
[null,"Dinner for Frans (fish vegetable)",2,12000,24000]
[null,"Water for guest",1,1200,1200]
[null,"Drink for guest",1,1300,1300]
["2025-07-07","Drink for COO",1,1000,1000]
[null,"Lunch for COO",1,4000,4000]
[null,"Lunch for Jo Daniel",1,4000,4000]
[null,"Drink for Jo Daniel",1,1300,1300]
[null,"Dinner for Clive(2 chicken brochette and chips)",1,11500,11500]
[null,"Drink for Clive",1,1300,1300]
["2025-08-07","Dinner for Clive (chicken Wraps)",1,12000,12000]
[null,"Drink for Clive",2,1300,2600]
["2025-09-07","Dinner for Clive(2 chicken brochette and chips)",1,11500,11500]
[null,"Drink for Clive",2,1300,2600]
[null,"Dinner for Chandela(half chicken and chips)",1,11500,11500]
[null,"Drink for Chandela",1,1300,1300]
["2025-10-07","Bobcat Refresher training(3 times)",28,4000,112000]
[null,"Lunch for Rescue team",18,4000,72000]
[null,"Dinner for Rescue team",18,4000,72000]
[null,"Drinks for Rescue team",18,1300,23400]
[null,"Dinner for Chandela(5brochette and chips)",1,11000,11000]
[null,"African tea",1,2500,2500]
[null,"Drink for Chandela",1,1300,1300]
[null,"Breakfast for Investors visit",30,8000,240000]
[null,"Lunch for Investors visit",30,25000,750000]
[null,"Softdrinks for Investors visit",1,79500,79500]
[null,"Drinks for RIB and Police (Rescue time)",1,19600,19600]
["2025-11-07","Breakfast for Rescue team",30,4000,120000]
[null,"Lunch for Rescue team",20,4000,80000]
[null,"Lunch for Mayor team in rescue time",1,55700,55700]
[null,"Drinks for rescue team(3botles per person)",1,214800,214800]
["2025-12-07","Dinner for Chandela(fish vegetable and chips)",1,12000,12000]
["13/7/2025","Dinner for Chandela(fish vegetable and chips)",1,12000,12000]
[null,"Drink for Chandela",1,1200,1200]
["14/7/2025","Light vehicle training",5,4000,20000]
[null,"Dinner for Chandela(Rabbit)",1,10000,10000]
[null,"Drink for Chandela",2,1000,2000]
[null,"Lunch for the guest(Andrea and Moodley)",2,4000,8000]
[null,"Drinks for the guest(Andrea and Moodley)",3,1000,3000]
[null,"Lunch for CFO",1,4000,4000]
[null,"Drinks for CFO",2,1300,2600]
[null,"Dinner for the guest(Fish veg and chips )(Andrea and Moodley)",2,12000,24000]
[null,"Drinks for the guest(Andrea and Moodley)",2,1200,2400]
[null,"Dinner for Chandela(fish vegetable and chips)",1,1200,1200]
[null,"Water for Chandela",1,1000,1000]
[null,"African tea",1,2500,2500]
["15/7/2025","Lunch for chandela",1,4000,4000]
[null,"Lunch for the guest(Andrea and Moodley)",2,4000,8000]
[null,"Dinner for the guest(Chicken wraps )(Andrea and Moodley)",2,12000,24000]
[null,"Drinks for the guest(Andrea and Moodley)",2,1200,2400]
["16/7/2025","OHS meeting",5,4000,20000]
[null,"Lunch for the guest(Andrea and Moodley)(6beefbrochet&chips)",1,31000,31000]
[null,"Water for the guest",1,1200,1200]
[null,"Drinks for the guest(Andrea and Moodley)",2,1300,2600]
[null,"Dinner for the guest(Chicken wraps )(Andrea and Moodley)",2,12000,24000]
[null,"Drinks for the guest(Andrea and Moodley)",2,1300,2600]
["17/7/2025","Lunch for Andre",1,4000,4000]
[null,"Dinner for Andre(Chicken burger)",1,10000,10000]
[null,"Drinks For Andre ",1,1300,1300]
[null,"Dinner for the guest(Beef burger&chips )(Andrea and Moodley)",2,10000,20000]
[null,"Drinks for the guest(Andrea and Moodley)",2,1300,2600]
["18/7/2025","Lunch for Andre",1,4000,4000]
[null,"Drinks For Andre ",1,1300,1300]
[null,"Lunch for the guest(Andrea and Moodley)",2,4000,8000]
[null,"Drinks for the guest(Andrea and Moodley)",2,1300,2600]
[null,"Dinner for the guest(2chicken brochette,chips,2chicken wraps,chicken stew)(Andrea,Andre and Moodley)",1,45500,45500]
[null,"Drinks for the guest(Andrea and Moodley)",4,1300,5200]
[null,"Water for the guest",1,1200,1200]
["19/7/2025","Lunch for Andre(Chicken brochet and chips)",1,7500,7500]
[null,"Dinner for Andre(Spaghetti bolongeus)",1,8500,8500]
[null,"Drink For Andre",1,1300,1300]
[null,"water for Andre",1,1000,1000]
[null,"Dinner for the guest(Chicken wraps )(Andrea and Moodley)",2,12000,24000]
["20/7/2025","Dinner for Andre(beef brochette& chips salade)",1,12000,12000]
[null,"Drink For Andre",1,1000,1000]
["21/7/2025","Lunch for SDF trainings(Musha people ) 9 times",63,4000,252000]
[null,"Dinner for SDF trainings(Musha people ) 8 times",77,4000,308000]
[null,"Lunch for Andre",1,4000,4000]
[null,"Drink For Andre",1,1000,1000]
[null,"Dinner for Andre(Chicken wraps & chips)",1,15500,15500]
[null,"Drink For Andre",1,1300,1300]
[null,"Water for Andre",1,1200,1200]
["22/7/2025","Dinner for Andre(Fish vegetable & chips)",1,15500,15500]
[null,"Drink For Andre",1,1000,1000]
["23/7/2025","Dinner for Andre(Chicken wraps)",1,12000,12000]
[null,"Drink For Andre",1,1300,1300]
["24/7/2025","Lunch for Andre",1,4000,4000]
[null,"Avocat for Andre",1,1000,1000]
[null,"Water for Andre",1,1000,1000]
[null,"Lunch for Province visitors",15,4000,{"$f":"C130*D130","v":60000}]
[null,"Drinks for Province visitors",1,19500,{"$f":"C131*D131","v":19500}]
[null,"Dinner for Andre(Chicken wraps)",1,12000,12000]
[null,"Drink For Andre",1,1300,1300]
[null,"Water for Andre",1,1000,1000]
["25/7/2025","Lunch for Andre",1,4000,4000]
[null,"Drinks for Andre",1,1300,1300]
[null,"Water for Andre",1,1000,1000]
[null,"Lunch for Christopher",1,4000,4000]
[null,"Drinks for Christopher",1,1300,1300]
[null,"Football team consumption after match",1,65000,65000]
["26/7/2025","Dinner for Christopher(spaghetti bolognesse)",1,8500,8500]
[null,"Drinks for Christopher",1,3500,3500]
["28/7/2025","Dinner for Christopher(spaghetti bolognesse)",1,8500,8500]
[null,"Drinks for Christopher",1,5000,5000]
["29/7/2025","Dinner for Pieter albert(Fish vegetable)",1,12000,12000]
[null,"Drinks for Pieter albert",2,1500,3000]
[null,"Accomodation for Nyakabingo driver(5 times)",5,15000,75000]
[null,"Dinner for Nyakabingo driver",1,4000,4000]
["30/7/2025","Lunch for workplace training (2 times)",30,4000,120000]
[null,"Lunch for MININTER visit",10,4000,{"$f":"C150*D150","v":40000}]
[null,"Lunch for Nyakabingo driver",1,4000,{"$f":"C151*D151","v":4000}]
[null,"Dinner for Nyakabingo driver",1,4000,4000]
[null,"Dinner for Pieter albert(Fish vegetable)",1,8500,8500]
[null,"Dinner for Christopher(Fish vegetable)",1,8500,8500]
[null,"Drinks for Christopher",1,5000,5000]
[null,"Drinks for Pieter albert",1,5000,5000]
["31/7/2025","Lunch for Nyakabingo driver",1,4000,4000]
[null,"Dinner for Nyakabingo driver",1,4000,4000]
[]
[]
[null,null,null,"Total",{"$f":"SUM(E36:E158)","v":3589600}]

{"sheet":"Camp August 2025","index":33,"n_rows":127,"n_cols":6,"rows_kept":127,"cut":false,"hidden":true,"merged":[[23,1,25,1],[26,1,29,1],[30,1,33,1],[34,1,36,1],[37,1,44,1],[87,1,92,1],[45,1,46,1],[47,1,48,1],[49,1,52,1],[53,1,54,1],[55,1,61,1],[62,1,65,1],[66,1,70,1],[71,1,77,1],[78,1,81,1],[82,1,84,1],[85,1,86,1],[93,1,99,1],[100,1,106,1],[107,1,109,1],[110,1,117,1],[119,1,123,1]]}
[]
[null,"NAMES","DEPARTMENT","TIME IN - TIME OUT"]
[null,"Shane Ryan","COO","3/8/2025 - 8/8/2025"]
[null,"Sidney","Community","22/4/2025 - 29/8/2025"]
[null,"Pieter Albert","HR","29/7/2025 - 2/8/2025"]
[null,"Fanie Fereira","HR","3/8/2025 - 15/8/2025"]
[null,"Tony barbour","Community","18/8/2025 - 21/8/2025"]
[null,"Quintin Grix","MRM","24/8/2025 - 30/8/2025"]
[null,"Jan Andries","MRM","24/8/2025 - 30/8/2025"]
[null,"Andre nel","Finance","27/8/2025 - up to now"]
[]
[]
[]
[]
[]
[]
[]
[]
[]
[]
[null,"DATE","CONSUMPTION","NUMBER OF PEOPLE","UNITY PRICE","TOTAL AMOUNT"]
[null,"1/8/2025 to 29/8/2025","Dinner for SDF trainings(Musha people ) 19 times ",182,4000,{"$f":"D22*E22","v":728000}]
[null,"4/8/2025 to 13/8/2025","Lunch for blasting assistant  (8 times)",146,4000,{"$f":"D23*E23","v":584000}]
[null,"2025-05-08","Lunch for CFO",1,4000,4000]
[null,null,"Drinks for CFO",1,1300,1300]
[null,null,"Lunch for visitors(Sam Ryumugabe)",2,4000,8000]
[null,"2025-06-08","Dinner for Fannie",1,4000,4000]
[null,null,"Drinks for Fannie",2,1300,2600]
[null,null,"Lunch for CFO",1,4000,4000]
[null,null,"Drinks for CFO",1,1300,1300]
[null,"2025-07-08","Lunch for CFO",1,4000,4000]
[null,null,"Drinks for CFO",1,1300,1300]
[null,null,"Lunch for visitors (GIZ visit)",15,4000,60000]
[null,null,"Drinks for for visitors (GIZ visit)",1,17400,17400]
[null,"2025-08-08","Lunch for driver/musha (peter simon )",3,4000,12000]
[null,null,"Drinks for Fannie",2,1300,2600]
[null,null,"Water for Fannie",1,1000,1000]
[null,"2025-11-08","Drinks for Fannie",1,1300,1300]
[null,null,"Lunch for COO",1,4000,4000]
[null,null,"Drinks for COO",1,1300,1300]
[null,null,"Lunch for RIB Person(2)",2,4000,8000]
[null,null,"Drinks RIB Parson (2)",2,1300,2600]
[null,null,"Drinks visitors (Karangwa Erneste )",1,20900,20900]
[null,null,"Dinner G.M ",1,10400,10400]
[null,null,"Drinks G.M",5,2000,10000]
[null,"2025-12-08"," Lunch Visitors (Karangwa Erneste )",7,4000,28000]
[null,null,"Drinks Visitors (Karangwa Erneste ) ",7,1300,9100]
[null,"13/8/2025","Lunch training(Disciplinary and Anti-Harassment & Bullying Policies and Procedures)",29,4000,116000]
[null,null,"Lunch Mixing team (Upgrading plant)",32,4000,128000]
[null,"14/8/2025","Lunch for Fannie",1,4000,4000]
[null,null,"Drinks for Fannie",2,1300,2600]
[null,null,"Lunch for CFO",1,4000,4000]
[null,null,"Drink for CFO",1,1300,1300]
[null,"16/8/2025","Lunch for Football team ",40,4000,160000]
[null,null,"Drinks for Football team",40,1300,52000]
[null,"18/8/2025","Lunch for training(MRM collaboration )",16,4000,64000]
[null,null,"Lunch for Visitors (sam )",2,4000,8000]
[null,null,"Dinner for Visitors (sam ) ",2,1300,2600]
[null,null,"Dinner for Tony (Chicken stew & chicken)",1,8500,8500]
[null,null,"Drink for G.M ",3,1700,5100]
[null,null,"Dinner G.M (rabbit)",1,10000,10000]
[null,null,"Lunch for COO",1,4000,4000]
[null,"19/8/2025","Lunch  for Tony ",1,4000,4000]
[null,null,"Drink for Tony ",2,1300,2600]
[null,null,"Dinner for Tony",1,8000,8000]
[null,null,"Drink for Tony ",1,1300,1300]
[null,"20/8/2025","Lunch forVisitors (Sam)",2,4000,8000]
[null,null,"Drink for Visitors (Sam)",4,1300,5200]
[null,null,"Lunch for mixing team( upgrading plant)",15,4000,60000]
[null,null,"Dinner for Nyamyumba plant team",12,4000,48000]
[null,null,"Drinks for Nyamyumba plant team",12,1500,18000]
[null,"21/8/2025","Lunch for Nyamyumba plant team",15,4000,60000]
[null,null,"Drinks for Nyamyumba plant team",15,1300,19500]
[null,null,"Lunch for Finance manager Nyakabingo",1,3000,3000]
[null,null,"Drinks for Finance manager Nyakabingo",1,1300,1300]
[null,null,"Lunch for  Visitors (Sam)",2,4000,{"$f":"D76*E76","v":8000}]
[null,null,"Drinks for Visitors(Sam)",2,1300,2600]
[null,null,"Drink for G.M",3,1200,3600]
[null,"22/8/2025","Lunch for CFO",1,4000,4000]
[null,null,"Drink for CFO",2,1300,2600]
[null,null,"Lunch for Nyamyumba plant team",9,4000,36000]
[null,null,"Drinks for GM and Mine Supervisor",1,151000,151000]
[null,"23/8/2025","Lunch for Nyamyumba plant team",18,4000,72000]
[null,null,"Softdrinks for Nyamyumba plant team",18,1300,23400]
[null,null,"Beer for Nyamyumba plant team",18,6000,108000]
[null,"24/8/2025","Breakfast for Football Team",25,4000,100000]
[null,null,"Inyange jus for Football team",27,1300,35100]
[null,"25/8/2025","Lunch for COO",1,4000,4000]
[null,null,"Lunch for CFO",1,4000,4000]
[null,null,"Drink for CFO",1,1300,1300]
[null,null,"Lunch for  OHMS Geotechnical ",4,4000,16000]
[null,null,"Dinner for OHMS Geotechnical(Beef burger + Chips)",2,10000,20000]
[null,null,"Drink for OHMS Geotechnical (big fanta)",1,1300,1300]
[null,"26/8/2025","Lunch for CFO",1,4000,4000]
[null,null,"Drink for CFO",2,1300,2600]
[null,null,"Lunch for  OHMS Geotechnical ",5,4000,20000]
[null,null,"Drink for OHMS Geotechnical ",1,6300,6300]
[null,null,"Dinner for OHMS Geotechnical( Porc & chips)",2,11000,22000]
[null,null,"Drink for OHMS Geotechnical (juice)",2,1300,2600]
[null,null,"Drink for OHMS Geotechnical  (small fanta)",2,1000,2000]
[null,"27/8/2025","Lunch for CFO",1,4000,4000]
[null,null,"Drink for CFO",2,1300,2600]
[null,null,"Lunch for COO",1,4000,4000]
[null,null,"Drinks for COO",1,1300,1300]
[null,null,"Dinner for OHMS Geotechnical( Rabbit & chips)",2,13500,27000]
[null,null,"Drink for OHMS Geotechnical (Juice)",3,1300,3900]
[null,null,"Drink for OHMS Geotechnical  (small fanta)",1,1000,1000]
[null,"28/8/2025","Dinner for OHMS Geotechnical( Beef burger, fish brochette& chips)",1,21500,21500]
[null,null,"Drink for OHMS Geotechnical (Juice)",4,1300,5200]
[null,null,"Drink for OHMS Geotechnical  (small fanta)",2,1000,2000]
[null,"29/8/2025","Lunch for CFO",1,4000,4000]
[null,null,"Drink for CFO",2,1300,2600]
[null,null,"Lunch for  OHMS Geotechnical ",4,4000,16000]
[null,null,"Drink for OHMS Geotechnical (Juice)",3,1300,3900]
[null,null,"Drink for OHMS Geotechnical  (small fanta)",1,1000,1000]
[null,null,"Dinner for OHMS Geotechnical( fish brochette)",5,4000,20000]
[null,null,"Dinner for OHMS Geotechnical( Chips)",1,3500,3500]
[null,null,"Drink for OHMS Geotechnical (Big fanta)",2,3500,7000]
[null,"30/8/2025","Lunch for mixing team( upgrading plant)",20,4000,80000]
[null,"31/8/2025","Breakfast for Football Team",30,4000,120000]
[null,null,"Inyange juice for Football team",25,1300,32500]
[null,null,"Dinner for football team",34,4000,136000]
[null,null,"Inyange water for football team",25,1000,25000]
[null,null,"Small fanta for football team",34,1000,34000]
[]
[]
[null,null,null,null,"Total",{"$f":"SUM(F22:F124)","v":3550500}]

{"sheet":"Consumption August","index":34,"n_rows":139,"n_cols":6,"rows_kept":139,"cut":false,"hidden":true,"merged":[[78,1,82,1],[35,1,37,1],[38,1,41,1],[42,1,45,1],[46,1,48,1],[49,1,56,1],[57,1,58,1],[1,2,1,5],[112,1,118,1],[119,1,121,1],[122,1,129,1],[131,1,135,1],[83,1,89,1],[90,1,93,1],[94,1,96,1],[97,1,98,1],[99,1,104,1],[105,1,111,1],[59,1,60,1],[61,1,64,1],[65,1,66,1],[67,1,73,1],[74,1,77,1]]}
[]
[null,null,"CONSUMPTION SUMMARY IN AUGUST 2025"]
[]
[null,null,"CONSUMPTION","NUMBER OF PEOPLE","UNITY PRICE","TOTAL AMOUNT"]
[null,null,"Drinks for Rutongo mines visitors (Small fanta) 1000F",66,1000,{"$f":"D5*E5","v":66000}]
[null,null,"Drink for G.M",3,1200,{"$f":"D6*E6","v":3600}]
[null,null,"Drinks for Rutongo mines visitors (Plastic fanta) 1300F",181,1300,235300]
[null,null,"Drinks for Nyamyumba plant team (Panach)",12,1500,18000]
[null,null,"Drink for G.M ",3,1700,5100]
[null,null,"Drinks for G.M",5,2000,10000]
[null,null,"Lunch for Finance manager Nyakabingo",1,3000,3000]
[null,null,"Dinner for Rutongo guest( Chips)",3,3500,10500]
[null,null,"Lunch and Dinner for Trainings, visitors and guest of Rutongo",692,4000,2768000]
[null,null,"Beer for Nyamyumba plant team",18,6000,108000]
[null,null,"Drink for OHMS Geotechnical ",1,6300,6300]
[null,null,"Dinner for Tony(Chicken stew & chips)",1,8500,8500]
[null,null,"Dinner for Tony( 2 fish brochette )",1,8000,8000]
[null,null,"Dinner for OHMS Geotechnical(Beef burger + Chips)",3,10000,30000]
[null,null,"Dinner for G.M (Porc)",1,10400,10400]
[null,null,"Dinner for OHMS Geotechnical( Porc & chips)",2,11000,22000]
[null,null,"Dinner for OHMS Geotechnical( Rabbit & chips)",2,13500,27000]
[null,null,"Drinks for for visitors (GIZ visit)",1,17400,17400]
[null,null,"Drinks for visitors DFS and Martina (Karangwa Erneste )",1,20900,20900]
[null,null,"Dinner for OHMS Geotechnical( Beef burger, fish brochette& chips)",1,21500,21500]
[null,null,"Drinks for G.M and Mine Supervisor",1,151000,151000]
[]
[null,null,null,null,"TOTAL",{"$f":"SUM(F5:F25)","v":3550500}]
[null,null,"Prepared by: "]
[null,null,"Reviewed by: "]
[]
[]
[]
[null,"DATE","CONSUMPTION","NUMBER OF PEOPLE","UNITY PRICE","TOTAL AMOUNT"]
[null,"1/8/2025 to 29/8/2025","Dinner for SDF trainings(Musha people ) 19 times ",182,4000,{"$f":"D34*E34","v":728000}]
[null,"4/8/2025 to 13/8/2025","Lunch for blasting assistant  (8 times)",146,4000,{"$f":"D35*E35","v":584000}]
[null,"2025-05-08","Lunch for CFO",1,4000,4000]
[null,null,"Drinks for CFO",1,1300,1300]
[null,null,"Lunch for visitors(Sam Ryumugabe)",2,4000,8000]
[null,"2025-06-08","Dinner for Fannie",1,4000,4000]
[null,null,"Drinks for Fannie",2,1300,2600]
[null,null,"Lunch for CFO",1,4000,4000]
[null,null,"Drinks for CFO",1,1300,1300]
[null,"2025-07-08","Lunch for CFO",1,4000,4000]
[null,null,"Drinks for CFO",1,1300,1300]
[null,null,"Lunch for visitors (GIZ visit)",15,4000,60000]
[null,null,"Drinks for for visitors (GIZ visit)",1,17400,17400]
[null,"2025-08-08","Lunch for driver/musha (peter simon )",3,4000,12000]
[null,null,"Drinks for Fannie",2,1300,2600]
[null,null,"Water for Fannie",1,1000,1000]
[null,"2025-11-08","Drinks for Fannie",1,1300,1300]
[null,null,"Lunch for COO",1,4000,4000]
[null,null,"Drinks for COO",1,1300,1300]
[null,null,"Lunch for RIB Person(2)",2,4000,8000]
[null,null,"Drinks RIB Parson (2)",2,1300,2600]
[null,null,"Drinks visitors (Karangwa Erneste )",1,20900,20900]
[null,null,"Dinner for G.M (Porc)",1,10400,10400]
[null,null,"Drinks for G.M",5,2000,10000]
[null,"2025-12-08"," Lunch Visitors (Karangwa Erneste )",7,4000,28000]
[null,null,"Drinks Visitors (Karangwa Erneste ) ",7,1300,9100]
[null,"13/8/2025","Lunch training(Disciplinary and Anti-Harassment & Bullying Policies and Procedures)",29,4000,116000]
[null,null,"Lunch Mixing team (Upgrading plant)",32,4000,128000]
[null,"14/8/2025","Lunch for Fannie",1,4000,4000]
[null,null,"Drinks for Fannie",2,1300,2600]
[null,null,"Lunch for CFO",1,4000,4000]
[null,null,"Drink for CFO",1,1300,1300]
[null,"16/8/2025","Lunch for Football team ",40,4000,160000]
[null,null,"Drinks for Football team",40,1300,52000]
[null,"18/8/2025","Lunch for training(MRM collaboration )",16,4000,64000]
[null,null,"Lunch for Visitors (sam )",2,4000,8000]
[null,null,"Dinner for Visitors (sam ) ",2,1300,2600]
[null,null,"Dinner for Tony (Chicken stew & chicken)",1,8500,8500]
[null,null,"Drink for G.M ",3,1700,5100]
[null,null,"Dinner G.M (rabbit)",1,10000,10000]
[null,null,"Lunch for COO",1,4000,4000]
[null,"19/8/2025","Lunch  for Tony ",1,4000,4000]
[null,null,"Drink for Tony ",2,1300,2600]
[null,null,"Dinner for Tony",1,8000,8000]
[null,null,"Drink for Tony ",1,1300,1300]
[null,"20/8/2025","Lunch forVisitors (Sam)",2,4000,8000]
[null,null,"Drink for Visitors (Sam)",4,1300,5200]
[null,null,"Lunch for mixing team( upgrading plant)",15,4000,60000]
[null,null,"Dinner for Nyamyumba plant team",12,4000,48000]
[null,null,"Drinks for Nyamyumba plant team",12,1500,18000]
[null,"21/8/2025","Lunch for Nyamyumba plant team",15,4000,60000]
[null,null,"Drinks for Nyamyumba plant team",15,1300,19500]
[null,null,"Lunch for Finance manager Nyakabingo",1,3000,3000]
[null,null,"Drinks for Finance manager Nyakabingo",1,1300,1300]
[null,null,"Lunch for  Visitors (Sam)",2,4000,8000]
[null,null,"Drinks for Visitors(Sam)",2,1300,2600]
[null,null,"Drink for G.M",3,1200,3600]
[null,"22/8/2025","Lunch for CFO",1,4000,4000]
[null,null,"Drink for CFO",2,1300,2600]
[null,null,"Lunch for Nyamyumba plant team",9,4000,36000]
[null,null,"Drinks for GM and Mine Supervisor",1,151000,151000]
[null,"23/8/2025","Lunch for Nyamyumba plant team",18,4000,72000]
[null,null,"Softdrinks for Nyamyumba plant team",18,1300,23400]
[null,null,"Beer for Nyamyumba plant team",18,6000,108000]
[null,"24/8/2025","Breakfast for Football Team",25,4000,100000]
[null,null,"Inyange jus for Football team",27,1300,{"$f":"D99*E99","v":35100}]
[null,"25/8/2025","Lunch for COO",1,4000,4000]
[null,null,"Lunch for CFO",1,4000,4000]
[null,null,"Drink for CFO",1,1300,1300]
[null,null,"Lunch for  OHMS Geotechnical ",4,4000,16000]
[null,null,"Dinner for OHMS Geotechnical(Beef burger + Chips)",2,10000,20000]
[null,null,"Drink for OHMS Geotechnical (big fanta)",1,1300,1300]
[null,"26/8/2025","Lunch for CFO",1,4000,4000]
[null,null,"Drink for CFO",2,1300,2600]
[null,null,"Lunch for  OHMS Geotechnical ",5,4000,20000]
[null,null,"Drink for OHMS Geotechnical ",1,6300,6300]
[null,null,"Dinner for OHMS Geotechnical( Porc & chips)",2,11000,22000]
[null,null,"Drink for OHMS Geotechnical (juice)",2,1300,2600]
[null,null,"Drink for OHMS Geotechnical  (small fanta)",2,1000,2000]
[null,"27/8/2025","Lunch for CFO",1,4000,4000]
[null,null,"Drink for CFO",2,1300,2600]
[null,null,"Lunch for COO",1,4000,4000]
[null,null,"Drinks for COO",1,1300,1300]
[null,null,"Dinner for OHMS Geotechnical( Rabbit & chips)",2,13500,27000]
[null,null,"Drink for OHMS Geotechnical (Juice)",3,1300,3900]
[null,null,"Drink for OHMS Geotechnical  (small fanta)",1,1000,1000]
[null,"28/8/2025","Dinner for OHMS Geotechnical( Beef burger, fish brochette& chips)",1,21500,21500]
[null,null,"Drink for OHMS Geotechnical (Juice)",4,1300,5200]
[null,null,"Drink for OHMS Geotechnical  (small fanta)",2,1000,2000]
[null,"29/8/2025","Lunch for CFO",1,4000,4000]
[null,null,"Drink for CFO",2,1300,2600]
[null,null,"Lunch for  OHMS Geotechnical ",4,4000,16000]
[null,null,"Drink for OHMS Geotechnical (Juice)",3,1300,3900]
[null,null,"Drink for OHMS Geotechnical  (small fanta)",1,1000,1000]
[null,null,"Dinner for OHMS Geotechnical( fish brochette)",5,4000,20000]
[null,null,"Dinner for OHMS Geotechnical( Chips)",1,3500,3500]
[null,null,"Drink for OHMS Geotechnical (Big fanta)",2,3500,7000]
[null,"30/8/2025","Lunch for mixing team( upgrading plant)",20,4000,80000]
[null,"31/8/2025","Breakfast for Football Team",30,4000,120000]
[null,null,"Inyange juice for Football team",25,1300,32500]
[null,null,"Dinner for football team",34,4000,136000]
[null,null,"Inyange water for football team",25,1000,25000]
[null,null,"Small fanta for football team",34,1000,34000]
[]
[]
[null,null,null,null,"Total",{"$f":"SUM(F34:F136)","v":3550500}]

{"sheet":"Consumption September","index":35,"n_rows":191,"n_cols":6,"rows_kept":191,"cut":false,"hidden":false,"merged":[[110,1,111,1],[36,1,45,1],[46,1,53,1],[54,1,59,1],[60,1,69,1],[70,1,76,1],[77,1,81,1],[82,1,87,1],[88,1,95,1],[96,1,100,1],[101,1,104,1],[105,1,109,1],[180,1,181,1],[182,1,183,1],[184,1,188,1],[2,2,2,5],[145,1,151,1],[152,1,157,1],[158,1,168,1],[169,1,170,1],[171,1,172,1],[173,1,179,1],[112,1,113,1],[114,1,117,1],[118,1,124,1],[125,1,131,1],[132,1,138,1],[139,1,143,1]]}
[]
[]
[null,null,"CONSUMPTION SUMMARY IN SEPTEMBER 2025"]
[]
[null,null,"CONSUMPTION","NUMBER OF PEOPLE","UNITY PRICE","TOTAL AMOUNT"]
[null,null,"Banana for Football team & Rescue",92,250,{"$f":"D6*E6","v":23000}]
[null,null,"Softdrinks for RM visitors(1000frw)",222,1000,{"$f":"D7*E7","v":222000}]
[null,null,"Softdrinks for RM visitors(1300frw)",145,1300,188500]
[null,null,"Softdrinks for RM visitors(1300frw)",3,1500,4500]
[null,null,"Lunch for Visitor from nyakabingo",11,3000,33000]
[null,null,"Lunch for Trainings",1165,4000,4660000]
[null,null,"Toilet paper (2 packs)",2,4500,9000]
[null,null,"Dinner for Ivanis(Kawunga & beef)",1,5000,5000]
[null,null,"Dinner for Nyakabingo visitor(Pork & potatoes)",1,6700,6700]
[null,null,"Dinner for nyakabingo visitor(Pork & visitor)",1,7400,7400]
[null,null,"Dinner for fanie(Chips & beef brochette)",1,7500,7500]
[null,null,"Dinner for Ivanis(Kawunga & Pork)",3,8500,25500]
[null,null,"Dinner for Fanie (1kg pork & chips)",2,9500,19000]
[null,null,"Dinner for Fanie(Fish burger& chips)",11,10000,110000]
[null,null,"Dinner for Frans(Pork, rice & chips)",1,11500,11500]
[null,null,"Dinner for Frans(Fish Veg and chips)",9,12000,108000]
[null,null,"Dinner for chandela (Half chicken & chips)",6,13500,81000]
[null,null,"Accomodation for Intoduction to blasting (15 days)",120,15000,1800000]
[null,null,"Dinner for Frans(Whole chicken &chips with rice)",1,20000,20000]
[null,null,"Snacks for Explosives inspection",1,40000,40000]
[null,null,"Dinner and Drinks for GM visitor(Vice mayor)",1,149200,149200]
[null,null,"Drinks for Recognition of T28 and Amahame winner",1,884600,884600]
[]
[null,null,null,null,"TOTAL",{"$f":"SUM(F6:F27)","v":8415400}]
[]
[null,null,"Prepared by: Akayezu M. Francoise"]
[]
[null,null,"Reviewed by: Charles Kyamiza"]
[]
[]
[null,"DATE","CONSUMPTION","NUMBER OF PEOPLE","UNITY PRICE","TOTAL AMOUNT"]
[null,"2025-01-09","Lunch for Introduction to blasting (15 days)",158,4000,{"$f":"D37*E37","v":632000}]
[null,null,"Dinner for Intoduction to blasting   (12 days)",96,4000,{"$f":"D38*E38","v":384000}]
[null,null,"Accomodation for Intoduction to blasting (15 days)",120,15000,1800000]
[null,null,"Lunch for HIRA training  (2 days)",30,4000,120000]
[null,null,"Dinner for RTB/SDF training",135,4000,540000]
[null,null,"Lunch for COO",1,4000,4000]
[null,null,"Drinks for fanie",1,1300,1300]
[null,null,"Dinner for Fanie(Chicken stew& chips)",1,10000,10000]
[null,null,"Dinner for Frans(Fish veg & chips with rice)",1,12000,12000]
[null,null,"Drinks for fanie",1,1500,1500]
[null,"2025-02-09","Lunch for CFO",1,4000,4000]
[null,null,"Drink  for CFO",1,1300,1300]
[null,null,"Drinks for fanie",1,1300,1300]
[null,null,"Lunch for COO",1,4000,4000]
[null,null,"Drinks for COO",1,1300,1300]
[null,null,"Drinks for Frans",1,1300,1300]
[null,null,"Dinner for Frans(Whole chicken &chips with rice)",1,20000,20000]
[null,null,"Drinks for Frans",1,1000,1000]
[null,"2025-03-09","Lunch for LOTO training",15,4000,60000]
[null,null,"Lunch for CFO & olivier",2,4000,8000]
[null,null,"Drinks for CFO & olivier",2,1300,2600]
[null,null,"Dinner for Frans(1kg pork & chips)",1,9500,9500]
[null,null,"Dinner for Fanie (1kg pork & chips)",1,9500,9500]
[null,null,"Drinks for Frans & Fanie",2,1300,2600]
[null,"2025-04-09","Lunch for Working at Height Training",14,4000,56000]
[null,null,"Lunch for Talent Management System training (HR)",10,4000,40000]
[null,null,"Lunch for Emloyee(CFO)",3,4000,12000]
[null,null,"Drinks for Emloyee(CFO)",3,1300,3900]
[null,null,"Lunch for Jo danniel",1,4000,4000]
[null,null,"Lunch for Visitor from nyakabingo",2,3000,6000]
[null,null,"Dinner for Fanie(Fish burger& chips)",1,10000,10000]
[null,null,"Dinner for Frans(Fish Veg and chips)",1,12000,12000]
[null,null,"Drinks for Frans & Fanie",3,1300,3900]
[null,null,"Inyange water box (2 times)",24,1000,24000]
[null,"2025-05-09","Lunch for rescue training refresher",17,4000,68000]
[null,null,"Banana for Rescue",32,250,8000]
[null,null,"Lunch for CFO & olivier",2,4000,8000]
[null,null,"Drinks for CFO & olivier",2,1300,2600]
[null,null,"Dinner for Fanie(Fish burger& chips)",1,10000,10000]
[null,null,"Dinner for Frans(Fish Veg and chips)",1,12000,12000]
[null,null,"Drinks for RTB/SDF trainer meeting",15,1300,19500]
[null,"2025-06-09","Meals for Recognition of T28 and Amahame winner",192,4000,768000]
[null,null,"Drinks for Recognition of T28 and Amahame winner",1,884600,884600]
[null,null,"Dinner for Fanie(Fish burger& chips)",1,10000,10000]
[null,null,"Dinner for Frans(Fish Veg and chips)",1,12000,12000]
[null,null,"Drinks for Frans & Fanie",2,1500,3000]
[null,"2025-08-09","Lunch for Incident/Accident investigation training (2days)",26,4000,104000]
[null,null,"Lunch for COO",1,4000,4000]
[null,null,"Drinks for COO",1,1300,1300]
[null,null,"Lunch for Ivanis(MRM)",1,4000,4000]
[null,null,"Drinks for ivanis(MRM)",1,1300,{"$f":"D88*E87","v":1300}]
[null,null,"Drinks for CFO",1,1300,{"$f":"D89*E88","v":1300}]
[null,"2025-09-09","Drinks for Jo dannnel",1,1300,1300]
[null,null,"Lunch for Ivanis(MRM)",1,4000,4000]
[null,null,"Drinks for ivanis(MRM)",1,1300,1300]
[null,null,"Lunch for visitor (Ryumugabe)",5,4000,20000]
[null,null,"Drinks for visitor (Ryumugabe)",5,1300,6500]
[null,null,"Dinner for Fanie(Fish burger& chips)",1,10000,10000]
[null,null,"Dinner for Frans(Pork, rice & chips)",1,11500,11500]
[null,null,"Drinks for Frans & Fanie",2,1300,2600]
[null,"2025-10-09","Lunch for Safety represantative training(2 days)",26,4000,104000]
[null,null,"Lunch for WVR Side visit (Environment)",12,4000,48000]
[null,null,"Drinks for WVR Side visit (Environment)",12,1300,15600]
[null,null,"Lunch for CFO",1,4000,4000]
[null,null,"Drink  for CFO",2,1300,2600]
[null,"2025-11-09","Lunch for COO",1,4000,{"$f":"D102*E102","v":4000}]
[null,null,"Drinks for COO",1,1300,1300]
[null,null,"Dinner for Fanie & frans(Fish burger& chips)",2,10000,20000]
[null,null,"Drinks for Frans & Fanie",2,1300,2600]
[null,"2025-12-09","Lunch for Ivanis(MRM)",1,4000,4000]
[null,null,"Drinks for ivanis(MRM)",1,1300,1300]
[null,null,"Lunch for Upgrading plant (mixing team)",25,4000,100000]
[null,null,"Dinner for Fanie & frans(2 chicken & pasta)",2,10000,20000]
[null,null,"Drinks for Frans & Fanie",2,1300,2600]
[null,"13/9/2025","Breakfast for Rutongo Football team",30,4000,120000]
[null,null,"Banana for Rutongo Football team",30,250,7500]
[null,"14/9/2025","Dinner for Fanie & frans(2 fish burger& chips)",2,10000,20000]
[null,null,"Drinks  Fanie",1,1300,1300]
[null,"15/9/2025","Lunch for training Miner for non Miners(2 days)",36,4000,144000]
[null,null,"Lunch for Visitor (Benoni)",1,3000,3000]
[null,null,"Dinner for Frans(Fish and rice)",1,12000,12000]
[null,null,"Drinks for Frans",1,1000,1000]
[null,"16/7/2025","Lunch for Talent Management System  (HOD)",15,4000,60000]
[null,null,"Drinks for Talent Management System (HOD)",3,1300,3900]
[null,null,"Toilet paper (2 packs)",2,4500,9000]
[null,null,"Drinks  Fanie",1,1300,1300]
[null,null,"Dinner for chandela (Fish stew & chips)",1,12000,12000]
[null,null,"Drinks for chandela",1,1300,1300]
[null,null,"Dinner and Drinks for GM visitor(Vice mayor)",1,149200,149200]
[null,"17/9/2025","Lunch for Defencive driving training(2 days)",20,4000,80000]
[null,null,"Lunch for E&C staff from all mine",10,4000,40000]
[null,null,"Drinks for E&C staff from all mine",9,1000,9000]
[null,null,"Lunch for Nyamyumba plant shutdown(42 people) 3 days",126,4000,504000]
[null,null,"Drinks for Nyamyumba plant shutdown(42 people) 3 days",126,1000,126000]
[null,null,"Drinks for chandela",3,1300,3900]
[null,null,"Dinner for chandela (Half chicken & chips)",1,13500,13500]
[null,"18/9/2025","Snacs for Explosives inspection",1,40000,40000]
[null,null,"Lunch for COO",1,4000,4000]
[null,null,"Drinks for COO",1,1300,1300]
[null,null,"Drinks for chandela",1,1300,1300]
[null,null,"Dinner for chandela (Beef stew & chips)",1,12000,12000]
[null,null,"Dinner for lizelle(Chicken stew & chips)",1,13500,13500]
[null,null,"Dinner for fanie(Chips & beef brochette)",1,7500,7500]
[null,"19/9/2025","Lunch for bobcat refreshment (2 days)",16,4000,64000]
[null,null,"Lunch for 2  visitors( Fred)",2,4000,8000]
[null,null,"Drinks for 2  visitors( Fred)",2,1300,2600]
[null,null,"Drinks for chandela",2,1300,2600]
[null,null,"Dinner for chandela (Half chicken & chips)",1,13500,13500]
[null,"20/9/2025","Drinks for chandela",2,1300,2600]
[null,"22/9/2025","Lunch for COO",1,4000,4000]
[null,null,"Drinks for COO",1,1300,1300]
[null,null,"Lunch for Nyakabingo visitor",2,3000,6000]
[null,null,"Drinks for Nyakabingo visitor",2,1300,2600]
[null,null,"Dinner for Ivanis(Half chicken & chips)",1,13500,13500]
[null,null,"Drinks for Ivanis ",1,1000,1000]
[null,null,"Dinner for nyakabingo visitor(Pork & visitor)",1,7400,7400]
[null,"23/9/2025","Lunch for Nyakabingo visitor",2,3000,6000]
[null,null,"Drinks for Nyakabingo visitor",2,1300,2600]
[null,null,"Dinner for Nyakabingo visitor",2,3000,6000]
[null,null,"Drinks for Nyakabingo visitor",2,1300,2600]
[null,null,"Dinner for Ivanis(Half chicken & chips)",1,13500,13500]
[null,null,"Drinks for Ivanis ",1,1300,1300]
[null,"24/9/2025","Lunch for COO",1,4000,4000]
[null,null,"Drinks for COO",1,1300,1300]
[null,null,"Lunch for RMB visitor (Karangwa)",7,4000,28000]
[null,null,"Drinks for RMB visitor (Karangwa)",7,1300,9100]
[null,null,"Lunch for Nyakabingo visitor",2,3000,6000]
[null,null,"Drinks for Nyakabingo visitor",2,1300,2600]
[null,null,"Dinner for Nyakabingo visitor(Pork & potatoes)",1,6700,6700]
[null,null,"Drinks for Nyakabingo visitor",2,1300,2600]
[null,null,"Dinner for Ivanis(Kawunga & beef)",1,5000,5000]
[null,null,"Drinks for Ivanis ",1,1300,1300]
[null,null,"Lunch for Upgrading plant (mixing team)",25,4000,100000]
[null,"25/9/2025","Dinner for Ivanis(Half chicken & Chips)",1,13500,13500]
[null,null,"Drinks for Ivanis ",1,1300,1300]
[null,"26/9/2025","Dinner for Ivanis(Kawunga & fish vegetable)",1,12000,12000]
[null,null,"Drinks for Ivanis ",1,1300,1300]
[null,"27/9/2025","Breakfast for Rutongo Football team",30,4000,120000]
[null,null,"Bananas",30,250,7500]
[null,null,"Dinner for Rutongo football team",60,4000,240000]
[null,null,"Small fanta",60,1000,60000]
[null,null,"Juice for Rutongo football team",36,1300,46800]
[null,null,"Dinner for Ivanis(Kawunga, sombe & Pork)",1,8500,8500]
[null,null,"Drinks for Ivanis ",1,1300,1300]
[null,"28/9/2025","Dinner for Ivanis(Kawunga & fish vegetable)",1,12000,12000]
[null,null,"Drinks for Ivanis ",1,1300,1300]
[null,"29/9/2025","Dinner for Ivanis(Kawunga & Pork)",1,8500,8500]
[null,null,"Drinks for Ivanis ",1,1300,1300]
[null,"30/9/2025","Lunch for musha visitor (MRM)",6,4000,24000]
[null,null,"Lunch for COO",1,4000,4000]
[null,null,"Drinks for COO",1,1300,1300]
[null,null,"Dinner for Ivanis(Kawunga & Pork)",1,8500,8500]
[null,null,"Drinks for Ivanis ",1,1300,1300]
[]
[null,null,null,null,null,{"$f":"SUM(F37:F189)","v":8415400}]

{"sheet":"Sheet1","index":36,"n_rows":9,"n_cols":7,"rows_kept":9,"cut":false,"hidden":true,"merged":[]}
[]
[null,"Names","Position","Course","Oversees or In country","when (year)","How Much (cost)"]
[null,"Murorunkwere Epiphanie","Site manager","Masters in Environment and development studies","In country",2022,1900000]
[null,"Uwineza Francine","General Accauntant","Masters in business adminitration","In country",2024,2000000]
[null,"Furaha Liberathe","Stores & Fleet Coordinator","Bachelor in Business management","In country","on going",1700000]
[null,"Tuyishimire Belise","Accounting Clerk","Bachelor in Accaunting","In country",2025,1980000]
[null,"Umurerwa Blandine","Environmental Officer","Masters in Environment and development studies","In country",2025,1850000]
[null,"Charles Kyamiza","HR Manager","HRM Certification","In country",2024,1500000]
[null,"Nsengimana Erneste","HR Coordinator","HRM Certification","In country",2024,1500000]